Workbook

Sheet App.2-CA_CGAAP_DepExp_2011 (hidden)
K1: File Number: | L1: =#REF! -> 
K2: Exhibit:
K3: Tab:
K4: Schedule:
K5: Page:
K7: Date:
A9: Appendix 2-CA
A10: Depreciation and Amortization Expense
A11: Assumes the applicant adopted IFRS for financial reporting purposes January 1, 2012
C12: Year | D12: 2011 | E12: CGAAP
A14: Account | B14: Description | C14: Opening Regulatory Gross PP&E as at Jan 1, 2011 | D14: Less Fully Depreciated | E14: Net for Depreciation | F14: Additions | G14: Total for Depreciation | H14: Years | I14: Depreciation Rate | J14: Depreciation Expense | K14: 2011 Depreciation Expense per Appendix 2-B Fixed Assets, Column K (l) | L14: Variance 2
C15: (a) | D15: (b) | E15: (c) | F15: (d) | G15: (e) = (c) + ½ x (d) 1 | H15: (f) | I15: (g) = 1 / (f) | J15: (h) = (e) / (f) | L15: (m) = (h) - (l)
A16: 1611 | B16: Computer Software (Formally known as Account 1925) | E16: =C16-D16 -> 0 | G16: =E16+0.5*F16 -> 0 | I16: =IF(H16=0,0,1/H16) -> 0 | J16: =IF(H16=0,0,G16/H16) -> 0 | L16: =IF(ISERROR(+J16-K16), 0, +J16-K16) -> 0
A17: 1612 | B17: Land Rights (Formally known as Account 1906) | E17: =C17-D17 -> 0 | G17: =E17+0.5*F17 -> 0 | I17: 0 | J17: 0 | L17: 0
A18: 1805 | B18: Land | E18: 0 | G18: 0 | I18: 0 | J18: 0 | L18: 0
A19: 1808 | B19: Buildings | E19: 0 | G19: 0 | I19: 0 | J19: 0 | L19: 0
A20: 1810 | B20: Leasehold Improvements | E20: 0 | G20: 0 | I20: 0 | J20: 0 | L20: 0
A21: 1815 | B21: Transformer Station Equipment >50 kV | E21: 0 | G21: 0 | I21: 0 | J21: 0 | L21: 0
A22: 1820 | B22: Distribution Station Equipment <50 kV | E22: 0 | G22: 0 | I22: 0 | J22: 0 | L22: 0
A23: 1825 | B23: Storage Battery Equipment | E23: 0 | G23: 0 | I23: 0 | J23: 0 | L23: 0
A24: 1830 | B24: Poles, Towers & Fixtures | E24: 0 | G24: 0 | I24: 0 | J24: 0 | L24: 0
A25: 1835 | B25: Overhead Conductors & Devices | E25: 0 | G25: 0 | I25: 0 | J25: 0 | L25: 0
A26: 1840 | B26: Underground Conduit | E26: 0 | G26: 0 | I26: 0 | J26: 0 | L26: 0
A27: 1845 | B27: Underground Conductors & Devices | E27: 0 | G27: 0 | I27: 0 | J27: 0 | L27: 0
A28: 1850 | B28: Line Transformers | E28: 0 | G28: 0 | I28: 0 | J28: 0 | L28: 0
A29: 1855 | B29: Services (Overhead & Underground) | E29: 0 | G29: 0 | I29: 0 | J29: 0 | L29: 0
A30: 1860 | B30: Meters | E30: 0 | G30: 0 | I30: 0 | J30: 0 | L30: 0
A31: 1860 | B31: Meters (Smart Meters) | E31: 0 | G31: 0 | I31: 0 | J31: 0 | L31: 0
A32: 1905 | B32: Land | E32: 0 | G32: 0 | I32: 0 | J32: 0 | L32: 0
A33: 1908 | B33: Buildings & Fixtures | E33: 0 | G33: 0 | I33: 0 | J33: 0 | L33: 0
A34: 1910 | B34: Leasehold Improvements | E34: 0 | G34: 0 | I34: 0 | J34: 0 | L34: 0
A35: 1915 | B35: Office Furniture & Equipment (10 years) | E35: 0 | G35: 0 | I35: 0 | J35: 0 | L35: 0
A36: 1915 | B36: Office Furniture & Equipment (5 years) | E36: 0 | G36: 0 | I36: 0 | J36: 0 | L36: 0
A37: 1920 | B37: Computer Equipment - Hardware | E37: 0 | G37: 0 | I37: 0 | J37: 0 | L37: 0
A38: 1920 | B38: Computer Equip.-Hardware(Post Mar. 22/04) | E38: 0 | G38: 0 | I38: 0 | J38: 0 | L38: 0
A39: 1920 | B39: Computer Equip.-Hardware(Post Mar. 19/07) | E39: 0 | G39: 0 | I39: 0 | J39: 0 | L39: 0
A40: 1930 | B40: Transportation Equipment | E40: 0 | G40: 0 | I40: 0 | J40: 0 | L40: 0
A41: 1935 | B41: Stores Equipment | E41: 0 | G41: 0 | I41: 0 | J41: 0 | L41: 0
A42: 1940 | B42: Tools, Shop & Garage Equipment | E42: 0 | G42: 0 | I42: 0 | J42: 0 | L42: 0
A43: 1945 | B43: Measurement & Testing Equipment | E43: 0 | G43: 0 | I43: 0 | J43: 0 | L43: 0
A44: 1950 | B44: Power Operated Equipment | E44: 0 | G44: 0 | I44: 0 | J44: 0 | L44: 0
A45: 1955 | B45: Communications Equipment | E45: 0 | G45: 0 | I45: 0 | J45: 0 | L45: 0
A46: 1955 | B46: Communication Equipment (Smart Meters) | E46: 0 | G46: 0 | I46: 0 | J46: 0 | L46: 0
A47: 1960 | B47: Miscellaneous Equipment | E47: 0 | G47: 0 | I47: 0 | J47: 0 | L47: 0
A48: 1975 | B48: Load Management Controls Utility Premises | E48: 0 | G48: 0 | I48: 0 | J48: 0 | L48: 0
A49: 1980 | B49: System Supervisor Equipment | E49: 0 | G49: 0 | I49: 0 | J49: 0 | L49: 0
A50: 1985 | B50: Miscellaneous Fixed Assets | E50: 0 | G50: 0 | I50: 0 | J50: 0 | L50: 0
A51: 1995 | B51: Contributions & Grants | E51: 0 | G51: 0 | I51: 0 | J51: 0 | L51: 0
A52: etc. | E52: 0 | G52: 0 | I52: 0 | J52: 0 | L52: 0
E53: 0 | G53: 0 | I53: 0 | J53: 0 | L53: 0
B54: Total | C54: =SUM(C16:C53) -> 0 | D54: =SUM(D16:D53) -> 0 | E54: =SUM(E16:E53) -> 0 | F54: =SUM(F16:F53) -> 0 | G54: =SUM(G16:G53) -> 0 | J54: =SUM(J16:J53) -> 0 | K54: =SUM(K16:K53) -> 0 | L54: =SUM(L16:L53) -> 0
A56: Notes:
A58: 1 | B58: Board policy of the "half-year" rule - the applicant must ensure that additions in the year attract a half-year depreciation expense in the first year. Deviations from this standard practice must be supported in the application.
A59: 2 | B59: The applicant must provide an explanation of material variances in evidence
A61: General | B61: Applicants must provide a breakdown of depreciation and amortization expense in the above format for all relevant accounts. Asset Retirement Obligations (AROs), depreciation and accretion expense should be disclosed separately consistent with the Notes of historical Audited Financial Statements.

Sheet App.2-CB_MIFRS_DepExp_2011 (hidden)
N1: File Number: | O1: =#REF! -> 
N2: Exhibit:
N3: Tab:
N4: Schedule:
N5: Page:
N7: Date:
A9: Appendix 2-CB
A10: Depreciation and Amortization Expense
A11: Assumes the applicant adopted IFRS for financial reporting purposes January 1, 2012
C12: Year | D12: 2011 | E12: MIFRS
A14: Account | B14: Description | C14: Opening NBV as at Jan 1, 2011 5 | D14: Additions | E14: Average Remaining Life of Opening NBV 4 | F14: Years (new additions only) 3 | G14: Depreciation Rate on New Additions | H14: Depreciation Expense on Opening NBV | I14: Depreciation Expense on Additions 1 | J14: 2011 Depreciation Expense | K14: 2011 Depreciation Expense per Appendix 2-B Fixed Assets, Column K (l) | L14: Variance 2 | M14: Depreciation Expense on 2011 Full Year Additions | N14: Less Depreciation Expense on Assets Fully Depreciated during the year (o) | O14: 2011 Full Year Depreciation 6
C15: (a) | D15: (d) | E15: (i) | F15: (f) | G15: (g) = 1 / (f) | H15: (j) = (a) / (i) | I15: (h)=((d)*0.5)/(f) | J15: (k) = (j) + (h) | L15: (m) = (k) - (l) | M15: (n) = (d)/(f) | O15: (p) = (j) + (n) - (o)
A16: 1611 | B16: Computer Software (Formally known as Account 1925) | G16: =IF(F16=0,0,1/F16) -> 0 | H16: =IF(E16=0,0,+C16/E16) -> 0 | I16: =IF(F16=0,0,+(D16*0.5)/F16) -> 0 | J16: =IF(ISERROR(+H16+I16), 0, +H16+I16) -> 0 | L16: =IF(ISERROR(+J16-K16), 0, +J16-K16) -> 0 | M16: =IF(F16=0,0,+(D16)/F16) -> 0 | O16: =IF(ISERROR(+M16+H16-N16), 0, +M16+H16-N16) -> 0
A17: 1612 | B17: Land Rights (Formally known as Account 1906) | G17: 0 | H17: 0 | I17: 0 | J17: 0 | L17: 0 | M17: 0 | O17: =IF(ISERROR(+M17+H17-N17), 0, +M17+H17-N17) -> 0
A18: 1805 | B18: Land | G18: 0 | H18: 0 | I18: 0 | J18: 0 | L18: 0 | M18: 0 | O18: 0
A19: 1808 | B19: Buildings | G19: 0 | H19: 0 | I19: 0 | J19: 0 | L19: 0 | M19: 0 | O19: 0
A20: 1810 | B20: Leasehold Improvements | G20: 0 | H20: 0 | I20: 0 | J20: 0 | L20: 0 | M20: 0 | O20: 0
A21: 1815 | B21: Transformer Station Equipment >50 kV | G21: 0 | H21: 0 | I21: 0 | J21: 0 | L21: 0 | M21: 0 | O21: 0
A22: 1820 | B22: Distribution Station Equipment <50 kV | G22: 0 | H22: 0 | I22: 0 | J22: 0 | L22: 0 | M22: 0 | O22: 0
A23: 1825 | B23: Storage Battery Equipment | G23: 0 | H23: 0 | I23: 0 | J23: 0 | L23: 0 | M23: 0 | O23: 0
A24: 1830 | B24: Poles, Towers & Fixtures | G24: 0 | H24: 0 | I24: 0 | J24: 0 | L24: 0 | M24: 0 | O24: 0
A25: 1835 | B25: Overhead Conductors & Devices | G25: 0 | H25: 0 | I25: 0 | J25: 0 | L25: 0 | M25: 0 | O25: 0
A26: 1840 | B26: Underground Conduit | G26: 0 | H26: 0 | I26: 0 | J26: 0 | L26: 0 | M26: 0 | O26: 0
A27: 1845 | B27: Underground Conductors & Devices | G27: 0 | H27: 0 | I27: 0 | J27: 0 | L27: 0 | M27: 0 | O27: 0
A28: 1850 | B28: Line Transformers | G28: 0 | H28: 0 | I28: 0 | J28: 0 | L28: 0 | M28: 0 | O28: 0
A29: 1855 | B29: Services (Overhead & Underground) | G29: 0 | H29: 0 | I29: 0 | J29: 0 | L29: 0 | M29: 0 | O29: 0
A30: 1860 | B30: Meters | G30: 0 | H30: 0 | I30: 0 | J30: 0 | L30: 0 | M30: 0 | O30: 0
A31: 1860 | B31: Meters (Smart Meters) | G31: 0 | H31: 0 | I31: 0 | J31: 0 | L31: 0 | M31: 0 | O31: 0
A32: 1905 | B32: Land | G32: 0 | H32: 0 | I32: 0 | J32: 0 | L32: 0 | M32: 0 | O32: 0
A33: 1908 | B33: Buildings & Fixtures | G33: 0 | H33: 0 | I33: 0 | J33: 0 | L33: 0 | M33: 0 | O33: 0
A34: 1910 | B34: Leasehold Improvements | G34: 0 | H34: 0 | I34: 0 | J34: 0 | L34: 0 | M34: 0 | O34: 0
A35: 1915 | B35: Office Furniture & Equipment (10 years) | G35: 0 | H35: 0 | I35: 0 | J35: 0 | L35: 0 | M35: 0 | O35: 0
A36: 1915 | B36: Office Furniture & Equipment (5 years) | G36: 0 | H36: 0 | I36: 0 | J36: 0 | L36: 0 | M36: 0 | O36: 0
A37: 1920 | B37: Computer Equipment - Hardware | G37: 0 | H37: 0 | I37: 0 | J37: 0 | L37: 0 | M37: 0 | O37: 0
A38: 1920 | B38: Computer Equip.-Hardware(Post Mar. 22/04) | G38: 0 | H38: 0 | I38: 0 | J38: 0 | L38: 0 | M38: 0 | O38: 0
A39: 1920 | B39: Computer Equip.-Hardware(Post Mar. 19/07) | G39: 0 | H39: 0 | I39: 0 | J39: 0 | L39: 0 | M39: 0 | O39: 0
A40: 1930 | B40: Transportation Equipment | G40: 0 | H40: 0 | I40: 0 | J40: 0 | L40: 0 | M40: 0 | O40: 0
A41: 1935 | B41: Stores Equipment | G41: 0 | H41: 0 | I41: 0 | J41: 0 | L41: 0 | M41: 0 | O41: 0
A42: 1940 | B42: Tools, Shop & Garage Equipment | G42: 0 | H42: 0 | I42: 0 | J42: 0 | L42: 0 | M42: 0 | O42: 0
A43: 1945 | B43: Measurement & Testing Equipment | G43: 0 | H43: 0 | I43: 0 | J43: 0 | L43: 0 | M43: 0 | O43: 0
A44: 1950 | B44: Power Operated Equipment | G44: 0 | H44: 0 | I44: 0 | J44: 0 | L44: 0 | M44: 0 | O44: 0
A45: 1955 | B45: Communications Equipment | G45: 0 | H45: 0 | I45: 0 | J45: 0 | L45: 0 | M45: 0 | O45: 0
A46: 1955 | B46: Communication Equipment (Smart Meters) | G46: 0 | H46: 0 | I46: 0 | J46: 0 | L46: 0 | M46: 0 | O46: 0
A47: 1960 | B47: Miscellaneous Equipment | G47: 0 | H47: 0 | I47: 0 | J47: 0 | L47: 0 | M47: 0 | O47: 0
A48: 1975 | B48: Load Management Controls Utility Premises | G48: 0 | H48: 0 | I48: 0 | J48: 0 | L48: 0 | M48: 0 | O48: 0
A49: 1980 | B49: System Supervisor Equipment | G49: 0 | H49: 0 | I49: 0 | J49: 0 | L49: 0 | M49: 0 | O49: 0
A50: 1985 | B50: Miscellaneous Fixed Assets | G50: 0 | H50: 0 | I50: 0 | J50: 0 | L50: 0 | M50: 0 | O50: 0
A51: 1995 | B51: Contributions & Grants | G51: 0 | H51: 0 | I51: 0 | J51: 0 | L51: 0 | M51: 0 | O51: 0
A52: etc. | G52: 0 | H52: 0 | I52: 0 | J52: 0 | L52: 0 | M52: 0 | O52: 0
G53: 0 | H53: 0 | I53: 0 | J53: 0 | L53: 0 | M53: 0 | O53: 0
B54: Total | C54: =SUM(C16:C53) -> 0 | D54: =SUM(D16:D53) -> 0 | H54: =SUM(H16:H53) -> 0 | I54: 0 | J54: 0 | K54: 0 | L54: 0 | M54: 0 | N54: =SUM(N16:N53) -> 0 | O54: 0
A56: Notes:
A58: 1 | B58: Board policy of the "half-year" rule - the applicant must ensure that additions in the year attract a half-year depreciation expense in the first year. Deviations from this standard practice must be supported in the application.
A59: 2 | B59: The applicant must provide an explanation of material variances in evidence
A60: 3 | B60: The applicant should ensure that the years for new additions of assets are the asset useful lives determined by management in accordance with IFRS.
A61: 4 | B61: A recalculation should be performed to determine the average remaining life of opening balance of assets (i.e. excluding 2011 additions) under IFRS. For example, Asset A had a useful life of 20 years under CGAAP. On January 1, 2011, the date of transition, Asset A was 3 years depreciated. As a result, Asset A would have a remaining service life of 17 years (20 years less 3 years) under CGAAP as of January 1, 2011. Due to the transition to IFRS, management re-assessed the asset useful lives under IFRS principles and concluded that the revised useful life of Asset A is now 30 years. Therefore, the average remaining useful life of opening balance of Asset A is determined to be 27 years (30 years less 3 years) under IFRS as of January 1, 2011.
A62: 5 | B62: NBV must exclude assets still on the books but which have been fully amortized or depreciated.
A63: 6 | B63: This column refers to the calculated full year depreciation but excludes the depreciation expense on assets fully depreciated during the year. This column is used for the purpose of calculating depreciation expense in the following year on the next worksheet.
A65: General: | B65: Applicants must provide a breakdown of depreciation and amortization expense in the above format for all relevant accounts. Asset Retirement Obligations (AROs), depreciation and accretion expense should be disclosed separately consistent with the Notes of historical Audited Financial Statements.

Sheet App.2-CC_MIFRS_DepExp_2012 (hidden)
J1: File Number: | K1: =#REF! -> 
J2: Exhibit:
J3: Tab:
J4: Schedule:
J5: Page:
J7: Date:
A9: Appendix 2-CC
A10: Depreciation and Amortization Expense
A11: Assumes the applicant adopted IFRS for financial reporting purposes January 1, 2012
C12: 2012 | D12: MIFRS
A14: Account | B14: Description | C14: Additions | D14: Years (new additions only) | E14: Depreciation Rate on New Additions | F14: 2012 Depreciation Expense 1 | G14: 2012 Depreciation Expense per Apppendix 2-B Fixed Assets, Column K (l) | H14: Variance 2 | I14: Depreciation Expense on 2012 Full Year Additions | J14: Less Depreciation Expense on Assets Fully Depreciated during the year (o) | K14: 2012 Full Year Depreciation 3
C15: (d) | D15: (f) | E15: (g) = 1 / (f) | F15: (h)=2011 Full Year Deprecation + ((d)*0.5)/(f) | H15: (m) = (h) - (l) | I15: (n)=((d))/(f) | K15: (o) = 2011 Full Year Depreciation + (n) - (o)
A16: 1611 | B16: Computer Software (Formally known as Account 1925) | E16: =IF(D16=0,0,1/D16) -> 0 | F16: =IF(D16=0,+'App.2-CB_MIFRS_DepExp_2011'!O16,+'App.2-CB_MIFRS_DepExp_2011'!O16+((C16*0.5)/D16)) -> 0 | H16: =IF(ISERROR(+F16-G16), 0, +F16-G16) -> 0 | I16: =IF(D16=0,0,+(C16)/D16) -> 0 | K16: =IF(ISERROR(+I16+'App.2-CB_MIFRS_DepExp_2011'!O16-J16), 0, +I16+'App.2-CB_MIFRS_DepExp_2011'!O16-J16) -> 0
A17: 1612 | B17: Land Rights (Formally known as Account 1906) | E17: 0 | F17: =IF(D17=0,+'App.2-CB_MIFRS_DepExp_2011'!O17,+'App.2-CB_MIFRS_DepExp_2011'!O17+((C17*0.5)/D17)) -> 0 | H17: 0 | I17: 0 | K17: =IF(ISERROR(+I17+'App.2-CB_MIFRS_DepExp_2011'!O17-J17), 0, +I17+'App.2-CB_MIFRS_DepExp_2011'!O17-J17) -> 0
A18: 1805 | B18: Land | E18: 0 | F18: =IF(D18=0,+'App.2-CB_MIFRS_DepExp_2011'!O18,+'App.2-CB_MIFRS_DepExp_2011'!O18+((C18*0.5)/D18)) -> 0 | H18: 0 | I18: 0 | K18: =IF(ISERROR(+I18+'App.2-CB_MIFRS_DepExp_2011'!O18-J18), 0, +I18+'App.2-CB_MIFRS_DepExp_2011'!O18-J18) -> 0
A19: 1808 | B19: Buildings | E19: 0 | F19: =IF(D19=0,+'App.2-CB_MIFRS_DepExp_2011'!O19,+'App.2-CB_MIFRS_DepExp_2011'!O19+((C19*0.5)/D19)) -> 0 | H19: 0 | I19: 0 | K19: =IF(ISERROR(+I19+'App.2-CB_MIFRS_DepExp_2011'!O19-J19), 0, +I19+'App.2-CB_MIFRS_DepExp_2011'!O19-J19) -> 0
A20: 1810 | B20: Leasehold Improvements | E20: 0 | F20: =IF(D20=0,+'App.2-CB_MIFRS_DepExp_2011'!O20,+'App.2-CB_MIFRS_DepExp_2011'!O20+((C20*0.5)/D20)) -> 0 | H20: 0 | I20: 0 | K20: =IF(ISERROR(+I20+'App.2-CB_MIFRS_DepExp_2011'!O20-J20), 0, +I20+'App.2-CB_MIFRS_DepExp_2011'!O20-J20) -> 0
A21: 1815 | B21: Transformer Station Equipment >50 kV | E21: 0 | F21: =IF(D21=0,+'App.2-CB_MIFRS_DepExp_2011'!O21,+'App.2-CB_MIFRS_DepExp_2011'!O21+((C21*0.5)/D21)) -> 0 | H21: 0 | I21: 0 | K21: =IF(ISERROR(+I21+'App.2-CB_MIFRS_DepExp_2011'!O21-J21), 0, +I21+'App.2-CB_MIFRS_DepExp_2011'!O21-J21) -> 0
A22: 1820 | B22: Distribution Station Equipment <50 kV | E22: 0 | F22: =IF(D22=0,+'App.2-CB_MIFRS_DepExp_2011'!O22,+'App.2-CB_MIFRS_DepExp_2011'!O22+((C22*0.5)/D22)) -> 0 | H22: 0 | I22: 0 | K22: =IF(ISERROR(+I22+'App.2-CB_MIFRS_DepExp_2011'!O22-J22), 0, +I22+'App.2-CB_MIFRS_DepExp_2011'!O22-J22) -> 0
A23: 1825 | B23: Storage Battery Equipment | E23: 0 | F23: =IF(D23=0,+'App.2-CB_MIFRS_DepExp_2011'!O23,+'App.2-CB_MIFRS_DepExp_2011'!O23+((C23*0.5)/D23)) -> 0 | H23: 0 | I23: 0 | K23: =IF(ISERROR(+I23+'App.2-CB_MIFRS_DepExp_2011'!O23-J23), 0, +I23+'App.2-CB_MIFRS_DepExp_2011'!O23-J23) -> 0
A24: 1830 | B24: Poles, Towers & Fixtures | E24: 0 | F24: =IF(D24=0,+'App.2-CB_MIFRS_DepExp_2011'!O24,+'App.2-CB_MIFRS_DepExp_2011'!O24+((C24*0.5)/D24)) -> 0 | H24: 0 | I24: 0 | K24: =IF(ISERROR(+I24+'App.2-CB_MIFRS_DepExp_2011'!O24-J24), 0, +I24+'App.2-CB_MIFRS_DepExp_2011'!O24-J24) -> 0
A25: 1835 | B25: Overhead Conductors & Devices | E25: 0 | F25: =IF(D25=0,+'App.2-CB_MIFRS_DepExp_2011'!O25,+'App.2-CB_MIFRS_DepExp_2011'!O25+((C25*0.5)/D25)) -> 0 | H25: 0 | I25: 0 | K25: =IF(ISERROR(+I25+'App.2-CB_MIFRS_DepExp_2011'!O25-J25), 0, +I25+'App.2-CB_MIFRS_DepExp_2011'!O25-J25) -> 0
A26: 1840 | B26: Underground Conduit | E26: 0 | F26: =IF(D26=0,+'App.2-CB_MIFRS_DepExp_2011'!O26,+'App.2-CB_MIFRS_DepExp_2011'!O26+((C26*0.5)/D26)) -> 0 | H26: 0 | I26: 0 | K26: =IF(ISERROR(+I26+'App.2-CB_MIFRS_DepExp_2011'!O26-J26), 0, +I26+'App.2-CB_MIFRS_DepExp_2011'!O26-J26) -> 0
A27: 1845 | B27: Underground Conductors & Devices | E27: 0 | F27: =IF(D27=0,+'App.2-CB_MIFRS_DepExp_2011'!O27,+'App.2-CB_MIFRS_DepExp_2011'!O27+((C27*0.5)/D27)) -> 0 | H27: 0 | I27: 0 | K27: =IF(ISERROR(+I27+'App.2-CB_MIFRS_DepExp_2011'!O27-J27), 0, +I27+'App.2-CB_MIFRS_DepExp_2011'!O27-J27) -> 0
A28: 1850 | B28: Line Transformers | E28: 0 | F28: =IF(D28=0,+'App.2-CB_MIFRS_DepExp_2011'!O28,+'App.2-CB_MIFRS_DepExp_2011'!O28+((C28*0.5)/D28)) -> 0 | H28: 0 | I28: 0 | K28: =IF(ISERROR(+I28+'App.2-CB_MIFRS_DepExp_2011'!O28-J28), 0, +I28+'App.2-CB_MIFRS_DepExp_2011'!O28-J28) -> 0
A29: 1855 | B29: Services (Overhead & Underground) | E29: 0 | F29: =IF(D29=0,+'App.2-CB_MIFRS_DepExp_2011'!O29,+'App.2-CB_MIFRS_DepExp_2011'!O29+((C29*0.5)/D29)) -> 0 | H29: 0 | I29: 0 | K29: =IF(ISERROR(+I29+'App.2-CB_MIFRS_DepExp_2011'!O29-J29), 0, +I29+'App.2-CB_MIFRS_DepExp_2011'!O29-J29) -> 0
A30: 1860 | B30: Meters | E30: 0 | F30: =IF(D30=0,+'App.2-CB_MIFRS_DepExp_2011'!O30,+'App.2-CB_MIFRS_DepExp_2011'!O30+((C30*0.5)/D30)) -> 0 | H30: 0 | I30: 0 | K30: =IF(ISERROR(+I30+'App.2-CB_MIFRS_DepExp_2011'!O30-J30), 0, +I30+'App.2-CB_MIFRS_DepExp_2011'!O30-J30) -> 0
A31: 1860 | B31: Meters (Smart Meters) | E31: 0 | F31: =IF(D31=0,+'App.2-CB_MIFRS_DepExp_2011'!O31,+'App.2-CB_MIFRS_DepExp_2011'!O31+((C31*0.5)/D31)) -> 0 | H31: 0 | I31: 0 | K31: =IF(ISERROR(+I31+'App.2-CB_MIFRS_DepExp_2011'!O31-J31), 0, +I31+'App.2-CB_MIFRS_DepExp_2011'!O31-J31) -> 0
A32: 1905 | B32: Land | E32: 0 | F32: =IF(D32=0,+'App.2-CB_MIFRS_DepExp_2011'!O32,+'App.2-CB_MIFRS_DepExp_2011'!O32+((C32*0.5)/D32)) -> 0 | H32: 0 | I32: 0 | K32: =IF(ISERROR(+I32+'App.2-CB_MIFRS_DepExp_2011'!O32-J32), 0, +I32+'App.2-CB_MIFRS_DepExp_2011'!O32-J32) -> 0
A33: 1908 | B33: Buildings & Fixtures | E33: 0 | F33: =IF(D33=0,+'App.2-CB_MIFRS_DepExp_2011'!O33,+'App.2-CB_MIFRS_DepExp_2011'!O33+((C33*0.5)/D33)) -> 0 | H33: 0 | I33: 0 | K33: =IF(ISERROR(+I33+'App.2-CB_MIFRS_DepExp_2011'!O33-J33), 0, +I33+'App.2-CB_MIFRS_DepExp_2011'!O33-J33) -> 0
A34: 1910 | B34: Leasehold Improvements | E34: 0 | F34: =IF(D34=0,+'App.2-CB_MIFRS_DepExp_2011'!O34,+'App.2-CB_MIFRS_DepExp_2011'!O34+((C34*0.5)/D34)) -> 0 | H34: 0 | I34: 0 | K34: =IF(ISERROR(+I34+'App.2-CB_MIFRS_DepExp_2011'!O34-J34), 0, +I34+'App.2-CB_MIFRS_DepExp_2011'!O34-J34) -> 0
A35: 1915 | B35: Office Furniture & Equipment (10 years) | E35: 0 | F35: =IF(D35=0,+'App.2-CB_MIFRS_DepExp_2011'!O35,+'App.2-CB_MIFRS_DepExp_2011'!O35+((C35*0.5)/D35)) -> 0 | H35: 0 | I35: 0 | K35: =IF(ISERROR(+I35+'App.2-CB_MIFRS_DepExp_2011'!O35-J35), 0, +I35+'App.2-CB_MIFRS_DepExp_2011'!O35-J35) -> 0
A36: 1915 | B36: Office Furniture & Equipment (5 years) | E36: 0 | F36: =IF(D36=0,+'App.2-CB_MIFRS_DepExp_2011'!O36,+'App.2-CB_MIFRS_DepExp_2011'!O36+((C36*0.5)/D36)) -> 0 | H36: 0 | I36: 0 | K36: =IF(ISERROR(+I36+'App.2-CB_MIFRS_DepExp_2011'!O36-J36), 0, +I36+'App.2-CB_MIFRS_DepExp_2011'!O36-J36) -> 0
A37: 1920 | B37: Computer Equipment - Hardware | E37: 0 | F37: =IF(D37=0,+'App.2-CB_MIFRS_DepExp_2011'!O37,+'App.2-CB_MIFRS_DepExp_2011'!O37+((C37*0.5)/D37)) -> 0 | H37: 0 | I37: 0 | K37: =IF(ISERROR(+I37+'App.2-CB_MIFRS_DepExp_2011'!O37-J37), 0, +I37+'App.2-CB_MIFRS_DepExp_2011'!O37-J37) -> 0
A38: 1920 | B38: Computer Equip.-Hardware(Post Mar. 22/04) | E38: 0 | F38: =IF(D38=0,+'App.2-CB_MIFRS_DepExp_2011'!O38,+'App.2-CB_MIFRS_DepExp_2011'!O38+((C38*0.5)/D38)) -> 0 | H38: 0 | I38: 0 | K38: =IF(ISERROR(+I38+'App.2-CB_MIFRS_DepExp_2011'!O38-J38), 0, +I38+'App.2-CB_MIFRS_DepExp_2011'!O38-J38) -> 0
A39: 1920 | B39: Computer Equip.-Hardware(Post Mar. 19/07) | E39: 0 | F39: =IF(D39=0,+'App.2-CB_MIFRS_DepExp_2011'!O39,+'App.2-CB_MIFRS_DepExp_2011'!O39+((C39*0.5)/D39)) -> 0 | H39: 0 | I39: 0 | K39: =IF(ISERROR(+I39+'App.2-CB_MIFRS_DepExp_2011'!O39-J39), 0, +I39+'App.2-CB_MIFRS_DepExp_2011'!O39-J39) -> 0
A40: 1930 | B40: Transportation Equipment | E40: 0 | F40: =IF(D40=0,+'App.2-CB_MIFRS_DepExp_2011'!O40,+'App.2-CB_MIFRS_DepExp_2011'!O40+((C40*0.5)/D40)) -> 0 | H40: 0 | I40: 0 | K40: =IF(ISERROR(+I40+'App.2-CB_MIFRS_DepExp_2011'!O40-J40), 0, +I40+'App.2-CB_MIFRS_DepExp_2011'!O40-J40) -> 0
A41: 1935 | B41: Stores Equipment | E41: 0 | F41: =IF(D41=0,+'App.2-CB_MIFRS_DepExp_2011'!O41,+'App.2-CB_MIFRS_DepExp_2011'!O41+((C41*0.5)/D41)) -> 0 | H41: 0 | I41: 0 | K41: =IF(ISERROR(+I41+'App.2-CB_MIFRS_DepExp_2011'!O41-J41), 0, +I41+'App.2-CB_MIFRS_DepExp_2011'!O41-J41) -> 0
A42: 1940 | B42: Tools, Shop & Garage Equipment | E42: 0 | F42: =IF(D42=0,+'App.2-CB_MIFRS_DepExp_2011'!O42,+'App.2-CB_MIFRS_DepExp_2011'!O42+((C42*0.5)/D42)) -> 0 | H42: 0 | I42: 0 | K42: =IF(ISERROR(+I42+'App.2-CB_MIFRS_DepExp_2011'!O42-J42), 0, +I42+'App.2-CB_MIFRS_DepExp_2011'!O42-J42) -> 0
A43: 1945 | B43: Measurement & Testing Equipment | E43: 0 | F43: =IF(D43=0,+'App.2-CB_MIFRS_DepExp_2011'!O43,+'App.2-CB_MIFRS_DepExp_2011'!O43+((C43*0.5)/D43)) -> 0 | H43: 0 | I43: 0 | K43: =IF(ISERROR(+I43+'App.2-CB_MIFRS_DepExp_2011'!O43-J43), 0, +I43+'App.2-CB_MIFRS_DepExp_2011'!O43-J43) -> 0
A44: 1950 | B44: Power Operated Equipment | E44: 0 | F44: =IF(D44=0,+'App.2-CB_MIFRS_DepExp_2011'!O44,+'App.2-CB_MIFRS_DepExp_2011'!O44+((C44*0.5)/D44)) -> 0 | H44: 0 | I44: 0 | K44: =IF(ISERROR(+I44+'App.2-CB_MIFRS_DepExp_2011'!O44-J44), 0, +I44+'App.2-CB_MIFRS_DepExp_2011'!O44-J44) -> 0
A45: 1955 | B45: Communications Equipment | E45: 0 | F45: =IF(D45=0,+'App.2-CB_MIFRS_DepExp_2011'!O45,+'App.2-CB_MIFRS_DepExp_2011'!O45+((C45*0.5)/D45)) -> 0 | H45: 0 | I45: 0 | K45: =IF(ISERROR(+I45+'App.2-CB_MIFRS_DepExp_2011'!O45-J45), 0, +I45+'App.2-CB_MIFRS_DepExp_2011'!O45-J45) -> 0
A46: 1955 | B46: Communication Equipment (Smart Meters) | E46: 0 | F46: =IF(D46=0,+'App.2-CB_MIFRS_DepExp_2011'!O46,+'App.2-CB_MIFRS_DepExp_2011'!O46+((C46*0.5)/D46)) -> 0 | H46: 0 | I46: 0 | K46: =IF(ISERROR(+I46+'App.2-CB_MIFRS_DepExp_2011'!O46-J46), 0, +I46+'App.2-CB_MIFRS_DepExp_2011'!O46-J46) -> 0
A47: 1960 | B47: Miscellaneous Equipment | E47: 0 | F47: =IF(D47=0,+'App.2-CB_MIFRS_DepExp_2011'!O47,+'App.2-CB_MIFRS_DepExp_2011'!O47+((C47*0.5)/D47)) -> 0 | H47: 0 | I47: 0 | K47: =IF(ISERROR(+I47+'App.2-CB_MIFRS_DepExp_2011'!O47-J47), 0, +I47+'App.2-CB_MIFRS_DepExp_2011'!O47-J47) -> 0
A48: 1975 | B48: Load Management Controls Utility Premises | E48: 0 | F48: =IF(D48=0,+'App.2-CB_MIFRS_DepExp_2011'!O48,+'App.2-CB_MIFRS_DepExp_2011'!O48+((C48*0.5)/D48)) -> 0 | H48: 0 | I48: 0 | K48: =IF(ISERROR(+I48+'App.2-CB_MIFRS_DepExp_2011'!O48-J48), 0, +I48+'App.2-CB_MIFRS_DepExp_2011'!O48-J48) -> 0
A49: 1980 | B49: System Supervisor Equipment | E49: 0 | F49: =IF(D49=0,+'App.2-CB_MIFRS_DepExp_2011'!O49,+'App.2-CB_MIFRS_DepExp_2011'!O49+((C49*0.5)/D49)) -> 0 | H49: 0 | I49: 0 | K49: =IF(ISERROR(+I49+'App.2-CB_MIFRS_DepExp_2011'!O49-J49), 0, +I49+'App.2-CB_MIFRS_DepExp_2011'!O49-J49) -> 0
A50: 1985 | B50: Miscellaneous Fixed Assets | E50: 0 | F50: =IF(D50=0,+'App.2-CB_MIFRS_DepExp_2011'!O50,+'App.2-CB_MIFRS_DepExp_2011'!O50+((C50*0.5)/D50)) -> 0 | H50: 0 | I50: 0 | K50: =IF(ISERROR(+I50+'App.2-CB_MIFRS_DepExp_2011'!O50-J50), 0, +I50+'App.2-CB_MIFRS_DepExp_2011'!O50-J50) -> 0
A51: 1995 | B51: Contributions & Grants | E51: 0 | F51: =IF(D51=0,+'App.2-CB_MIFRS_DepExp_2011'!O51,+'App.2-CB_MIFRS_DepExp_2011'!O51+((C51*0.5)/D51)) -> 0 | H51: 0 | I51: 0 | K51: =IF(ISERROR(+I51+'App.2-CB_MIFRS_DepExp_2011'!O51-J51), 0, +I51+'App.2-CB_MIFRS_DepExp_2011'!O51-J51) -> 0
A52: etc. | E52: 0 | F52: =IF(D52=0,+'App.2-CB_MIFRS_DepExp_2011'!O52,+'App.2-CB_MIFRS_DepExp_2011'!O52+((C52*0.5)/D52)) -> 0 | H52: 0 | I52: 0 | K52: =IF(ISERROR(+I52+'App.2-CB_MIFRS_DepExp_2011'!O52-J52), 0, +I52+'App.2-CB_MIFRS_DepExp_2011'!O52-J52) -> 0
E53: 0 | F53: =IF(D53=0,+'App.2-CB_MIFRS_DepExp_2011'!O53,+'App.2-CB_MIFRS_DepExp_2011'!O53+((C53*0.5)/D53)) -> 0 | H53: 0 | I53: 0 | K53: =IF(ISERROR(+I53+'App.2-CB_MIFRS_DepExp_2011'!O53-J53), 0, +I53+'App.2-CB_MIFRS_DepExp_2011'!O53-J53) -> 0
B54: Total | C54: =SUM(C16:C53) -> 0 | F54: =SUM(F16:F53) -> 0 | G54: 0 | H54: 0 | I54: 0 | J54: 0 | K54: 0
A56: Notes:
A57: 1 | B57: Board policy of the "half-year" rule - the applicant must ensure that additions in the year attract a half-year depreciation expense in the first year. Deviations from this standard practice must be supported in the application.
A58: 2 | B58: The applicant must provide an explanation of material variances in evidence
A59: 3 | B59: This column refers to the calculated full year depreciation but excludes the depreciation expense on assets fully depreciated during the year. This column is used for the purpose of calculating depreciation expense in the following year on the next worksheet.
A61: General: | B61: Applicants must provide a breakdown of depreciation and amortization expense in the above format for all relevant accounts. Asset Retirement Obligations (AROs), depreciation and accretion expense should be disclosed separately consistent with the Notes of historical Audited Financial Statements.

Sheet App.2-CD_MIFRS_DepExp_2013 (hidden)
G1: File Number: | H1: =#REF! -> 
G2: Exhibit:
G3: Tab:
G4: Schedule:
G5: Page:
G7: Date:
A9: Appendix 2-CD
A10: Depreciation and Amortization Expense
A11: Assumes the applicant adopted IFRS for financial reporting purposes January 1, 2012
C12: 2013 | D12: MIFRS
A14: Account | B14: Description | C14: Additions | D14: Years (new additions only) | E14: Depreciation Rate on New Additions | F14: 2013 Depreciation Expense 1 | G14: 2013 Depreciation Expense per Appendix 2-B Fixed Assets, Column K (l) | H14: Variance 2
C15: (d) | D15: (f) | E15: (g) = 1 / (f) | F15: (h)=2012 Full Year Depreciation + ((d)*0.5)/(f) | H15: (m) = (h) - (l)
A16: 1611 | B16: Computer Software (Formally known as Account 1925) | E16: =IF(D16=0,0,1/D16) -> 0 | F16: =IF(D16=0,'App.2-CC_MIFRS_DepExp_2012'!K16,+'App.2-CC_MIFRS_DepExp_2012'!K16+((C16*0.5)/D16)) -> 0 | H16: =IF(ISERROR(+F16-G16), 0, +F16-G16) -> 0
A17: 1612 | B17: Land Rights (Formally known as Account 1906) | E17: 0 | F17: =IF(D17=0,'App.2-CC_MIFRS_DepExp_2012'!K17,+'App.2-CC_MIFRS_DepExp_2012'!K17+((C17*0.5)/D17)) -> 0 | H17: 0
A18: 1805 | B18: Land | E18: 0 | F18: =IF(D18=0,'App.2-CC_MIFRS_DepExp_2012'!K18,+'App.2-CC_MIFRS_DepExp_2012'!K18+((C18*0.5)/D18)) -> 0 | H18: 0
A19: 1808 | B19: Buildings | E19: 0 | F19: =IF(D19=0,'App.2-CC_MIFRS_DepExp_2012'!K19,+'App.2-CC_MIFRS_DepExp_2012'!K19+((C19*0.5)/D19)) -> 0 | H19: 0
A20: 1810 | B20: Leasehold Improvements | E20: 0 | F20: =IF(D20=0,'App.2-CC_MIFRS_DepExp_2012'!K20,+'App.2-CC_MIFRS_DepExp_2012'!K20+((C20*0.5)/D20)) -> 0 | H20: 0
A21: 1815 | B21: Transformer Station Equipment >50 kV | E21: 0 | F21: =IF(D21=0,'App.2-CC_MIFRS_DepExp_2012'!K21,+'App.2-CC_MIFRS_DepExp_2012'!K21+((C21*0.5)/D21)) -> 0 | H21: 0
A22: 1820 | B22: Distribution Station Equipment <50 kV | E22: 0 | F22: =IF(D22=0,'App.2-CC_MIFRS_DepExp_2012'!K22,+'App.2-CC_MIFRS_DepExp_2012'!K22+((C22*0.5)/D22)) -> 0 | H22: 0
A23: 1825 | B23: Storage Battery Equipment | E23: 0 | F23: =IF(D23=0,'App.2-CC_MIFRS_DepExp_2012'!K23,+'App.2-CC_MIFRS_DepExp_2012'!K23+((C23*0.5)/D23)) -> 0 | H23: 0
A24: 1830 | B24: Poles, Towers & Fixtures | E24: 0 | F24: =IF(D24=0,'App.2-CC_MIFRS_DepExp_2012'!K24,+'App.2-CC_MIFRS_DepExp_2012'!K24+((C24*0.5)/D24)) -> 0 | H24: 0
A25: 1835 | B25: Overhead Conductors & Devices | E25: 0 | F25: =IF(D25=0,'App.2-CC_MIFRS_DepExp_2012'!K25,+'App.2-CC_MIFRS_DepExp_2012'!K25+((C25*0.5)/D25)) -> 0 | H25: 0
A26: 1840 | B26: Underground Conduit | E26: 0 | F26: =IF(D26=0,'App.2-CC_MIFRS_DepExp_2012'!K26,+'App.2-CC_MIFRS_DepExp_2012'!K26+((C26*0.5)/D26)) -> 0 | H26: 0
A27: 1845 | B27: Underground Conductors & Devices | E27: 0 | F27: =IF(D27=0,'App.2-CC_MIFRS_DepExp_2012'!K27,+'App.2-CC_MIFRS_DepExp_2012'!K27+((C27*0.5)/D27)) -> 0 | H27: 0
A28: 1850 | B28: Line Transformers | E28: 0 | F28: =IF(D28=0,'App.2-CC_MIFRS_DepExp_2012'!K28,+'App.2-CC_MIFRS_DepExp_2012'!K28+((C28*0.5)/D28)) -> 0 | H28: 0
A29: 1855 | B29: Services (Overhead & Underground) | E29: 0 | F29: =IF(D29=0,'App.2-CC_MIFRS_DepExp_2012'!K29,+'App.2-CC_MIFRS_DepExp_2012'!K29+((C29*0.5)/D29)) -> 0 | H29: 0
A30: 1860 | B30: Meters | E30: 0 | F30: =IF(D30=0,'App.2-CC_MIFRS_DepExp_2012'!K30,+'App.2-CC_MIFRS_DepExp_2012'!K30+((C30*0.5)/D30)) -> 0 | H30: 0
A31: 1860 | B31: Meters (Smart Meters) | E31: 0 | F31: =IF(D31=0,'App.2-CC_MIFRS_DepExp_2012'!K31,+'App.2-CC_MIFRS_DepExp_2012'!K31+((C31*0.5)/D31)) -> 0 | H31: 0
A32: 1905 | B32: Land | E32: 0 | F32: =IF(D32=0,'App.2-CC_MIFRS_DepExp_2012'!K32,+'App.2-CC_MIFRS_DepExp_2012'!K32+((C32*0.5)/D32)) -> 0 | H32: 0
A33: 1908 | B33: Buildings & Fixtures | E33: 0 | F33: =IF(D33=0,'App.2-CC_MIFRS_DepExp_2012'!K33,+'App.2-CC_MIFRS_DepExp_2012'!K33+((C33*0.5)/D33)) -> 0 | H33: 0
A34: 1910 | B34: Leasehold Improvements | E34: 0 | F34: =IF(D34=0,'App.2-CC_MIFRS_DepExp_2012'!K34,+'App.2-CC_MIFRS_DepExp_2012'!K34+((C34*0.5)/D34)) -> 0 | H34: 0
A35: 1915 | B35: Office Furniture & Equipment (10 years) | E35: 0 | F35: =IF(D35=0,'App.2-CC_MIFRS_DepExp_2012'!K35,+'App.2-CC_MIFRS_DepExp_2012'!K35+((C35*0.5)/D35)) -> 0 | H35: 0
A36: 1915 | B36: Office Furniture & Equipment (5 years) | E36: 0 | F36: =IF(D36=0,'App.2-CC_MIFRS_DepExp_2012'!K36,+'App.2-CC_MIFRS_DepExp_2012'!K36+((C36*0.5)/D36)) -> 0 | H36: 0
A37: 1920 | B37: Computer Equipment - Hardware | E37: 0 | F37: =IF(D37=0,'App.2-CC_MIFRS_DepExp_2012'!K37,+'App.2-CC_MIFRS_DepExp_2012'!K37+((C37*0.5)/D37)) -> 0 | H37: 0
A38: 1920 | B38: Computer Equip.-Hardware(Post Mar. 22/04) | E38: 0 | F38: =IF(D38=0,'App.2-CC_MIFRS_DepExp_2012'!K38,+'App.2-CC_MIFRS_DepExp_2012'!K38+((C38*0.5)/D38)) -> 0 | H38: 0
A39: 1920 | B39: Computer Equip.-Hardware(Post Mar. 19/07) | E39: 0 | F39: =IF(D39=0,'App.2-CC_MIFRS_DepExp_2012'!K39,+'App.2-CC_MIFRS_DepExp_2012'!K39+((C39*0.5)/D39)) -> 0 | H39: 0
A40: 1930 | B40: Transportation Equipment | E40: 0 | F40: =IF(D40=0,'App.2-CC_MIFRS_DepExp_2012'!K40,+'App.2-CC_MIFRS_DepExp_2012'!K40+((C40*0.5)/D40)) -> 0 | H40: 0
A41: 1935 | B41: Stores Equipment | E41: 0 | F41: =IF(D41=0,'App.2-CC_MIFRS_DepExp_2012'!K41,+'App.2-CC_MIFRS_DepExp_2012'!K41+((C41*0.5)/D41)) -> 0 | H41: 0
A42: 1940 | B42: Tools, Shop & Garage Equipment | E42: 0 | F42: =IF(D42=0,'App.2-CC_MIFRS_DepExp_2012'!K42,+'App.2-CC_MIFRS_DepExp_2012'!K42+((C42*0.5)/D42)) -> 0 | H42: 0
A43: 1945 | B43: Measurement & Testing Equipment | E43: 0 | F43: =IF(D43=0,'App.2-CC_MIFRS_DepExp_2012'!K43,+'App.2-CC_MIFRS_DepExp_2012'!K43+((C43*0.5)/D43)) -> 0 | H43: 0
A44: 1950 | B44: Power Operated Equipment | E44: 0 | F44: =IF(D44=0,'App.2-CC_MIFRS_DepExp_2012'!K44,+'App.2-CC_MIFRS_DepExp_2012'!K44+((C44*0.5)/D44)) -> 0 | H44: 0
A45: 1955 | B45: Communications Equipment | E45: 0 | F45: =IF(D45=0,'App.2-CC_MIFRS_DepExp_2012'!K45,+'App.2-CC_MIFRS_DepExp_2012'!K45+((C45*0.5)/D45)) -> 0 | H45: 0
A46: 1955 | B46: Communication Equipment (Smart Meters) | E46: 0 | F46: =IF(D46=0,'App.2-CC_MIFRS_DepExp_2012'!K46,+'App.2-CC_MIFRS_DepExp_2012'!K46+((C46*0.5)/D46)) -> 0 | H46: 0
A47: 1960 | B47: Miscellaneous Equipment | E47: 0 | F47: =IF(D47=0,'App.2-CC_MIFRS_DepExp_2012'!K47,+'App.2-CC_MIFRS_DepExp_2012'!K47+((C47*0.5)/D47)) -> 0 | H47: 0
A48: 1975 | B48: Load Management Controls Utility Premises | E48: 0 | F48: =IF(D48=0,'App.2-CC_MIFRS_DepExp_2012'!K48,+'App.2-CC_MIFRS_DepExp_2012'!K48+((C48*0.5)/D48)) -> 0 | H48: 0
A49: 1980 | B49: System Supervisor Equipment | E49: 0 | F49: =IF(D49=0,'App.2-CC_MIFRS_DepExp_2012'!K49,+'App.2-CC_MIFRS_DepExp_2012'!K49+((C49*0.5)/D49)) -> 0 | H49: 0
A50: 1985 | B50: Miscellaneous Fixed Assets | E50: 0 | F50: =IF(D50=0,'App.2-CC_MIFRS_DepExp_2012'!K50,+'App.2-CC_MIFRS_DepExp_2012'!K50+((C50*0.5)/D50)) -> 0 | H50: 0
A51: 1995 | B51: Contributions & Grants | E51: 0 | F51: =IF(D51=0,'App.2-CC_MIFRS_DepExp_2012'!K51,+'App.2-CC_MIFRS_DepExp_2012'!K51+((C51*0.5)/D51)) -> 0 | H51: 0
A52: etc. | E52: 0 | F52: =IF(D52=0,'App.2-CC_MIFRS_DepExp_2012'!K52,+'App.2-CC_MIFRS_DepExp_2012'!K52+((C52*0.5)/D52)) -> 0 | H52: 0
E53: 0 | F53: =IF(D53=0,'App.2-CC_MIFRS_DepExp_2012'!K53,+'App.2-CC_MIFRS_DepExp_2012'!K53+((C53*0.5)/D53)) -> 0 | H53: 0
B54: Total | C54: =SUM(C16:C53) -> 0 | F54: =SUM(F16:F53) -> 0 | G54: =SUM(G16:G53) -> 0 | H54: =SUM(H16:H53) -> 0
B55: Depreciation expense adjustment resulting from amortization of Account 1575 | F55: 0
B56: Total Depreciation expense to be included in the test year revenue requirement | F56: =+F54+F55 -> 0
A57: Notes:
A58: 1 | B58: Board policy of the "half-year" rule - the applicant must ensure that additions in the year attract a half-year depreciation expense in the first year. Deviations from this standard practice must be supported in the application.
A59: 2 | B59: The applicant must provide an explanation of material variances in evidence
A61: General: | B61: Applicants must provide a breakdown of depreciation and amortization expense in the above format for all relevant accounts. Asset Retirement Obligations (AROs), depreciation and accretion expense should be disclosed separately consistent with the Notes of historical Audited Financial Statements.

Sheet App.2-CI_AltAccStd_DepExp (hidden)
K1: File Number: | L1: =#REF! -> 
K2: Exhibit:
K3: Tab:
K4: Schedule:
K5: Page:
K7: Date:
A9: Appendix 2-CI
A10: Depreciation and Amortization Expense
A11: Assumes the applicant adopted an alternate accounting standard other than IFRS for financial reporting purposes. For applicants adopting an Alternate Accounting Standard for financial reporting purposes January 1, 2012, applicants must complete 4 versions of the table below (2011 CGAAP, 2011 Alternate Accounting Standard, 2012 Alternate Accounting Standard and 2013 Alternate Accounting Standard). For applicants adopting an Alternate Accounting Standard for financial reporting purposes January 1, 2013, applicants must complete 4 versions of the table below (2011 CGAAP, 2012 CGAAP, 2012 Alternate Accounting Standard and 2013 Alternate Accounting Standard).
B12: Year | E12: Accounting Standard
A14: Account | B14: Description | C14: Opening Regulatory Gross PP&E | D14: Less Fully Depreciated | E14: Net for Depreciation | F14: Additions | G14: Total for Depreciation | H14: Years | I14: Depreciation Rate | J14: Depreciation Expense | K14: Depreciation Expense per Appendix 2-B Fixed Assets, Column K (l) | L14: Variance 2
C15: (a) | D15: (b) | E15: (c) | F15: (d) | G15: (e) = (c) + ½ x (d) 1 | H15: (f) | I15: (g) = 1 / (f) | J15: (h) = (e) / (f) | L15: (m) = (h) - (l)
A16: 1611 | B16: Computer Software (Formally known as Account 1925) | E16: =C16-D16 -> 0 | G16: =E16+0.5*F16 -> 0 | I16: =IF(H16=0,0,1/H16) -> 0 | J16: =IF(H16=0,0,G16/H16) -> 0 | L16: =IF(ISERROR(+J16-K16), 0, +J16-K16) -> 0
A17: 1612 | B17: Land Rights (Formally known as Account 1906) | E17: =C17-D17 -> 0 | G17: =E17+0.5*F17 -> 0 | I17: 0 | J17: 0 | L17: 0
A18: 1805 | B18: Land | E18: 0 | G18: 0 | I18: 0 | J18: 0 | L18: 0
A19: 1808 | B19: Buildings | E19: 0 | G19: 0 | I19: 0 | J19: 0 | L19: 0
A20: 1810 | B20: Leasehold Improvements | E20: 0 | G20: 0 | I20: 0 | J20: 0 | L20: 0
A21: 1815 | B21: Transformer Station Equipment >50 kV | E21: 0 | G21: 0 | I21: 0 | J21: 0 | L21: 0
A22: 1820 | B22: Distribution Station Equipment <50 kV | E22: 0 | G22: 0 | I22: 0 | J22: 0 | L22: 0
A23: 1825 | B23: Storage Battery Equipment | E23: 0 | G23: 0 | I23: 0 | J23: 0 | L23: 0
A24: 1830 | B24: Poles, Towers & Fixtures | E24: 0 | G24: 0 | I24: 0 | J24: 0 | L24: 0
A25: 1835 | B25: Overhead Conductors & Devices | E25: 0 | G25: 0 | I25: 0 | J25: 0 | L25: 0
A26: 1840 | B26: Underground Conduit | E26: 0 | G26: 0 | I26: 0 | J26: 0 | L26: 0
A27: 1845 | B27: Underground Conductors & Devices | E27: 0 | G27: 0 | I27: 0 | J27: 0 | L27: 0
A28: 1850 | B28: Line Transformers | E28: 0 | G28: 0 | I28: 0 | J28: 0 | L28: 0
A29: 1855 | B29: Services (Overhead & Underground) | E29: 0 | G29: 0 | I29: 0 | J29: 0 | L29: 0
A30: 1860 | B30: Meters | E30: 0 | G30: 0 | I30: 0 | J30: 0 | L30: 0
A31: 1860 | B31: Meters (Smart Meters) | E31: 0 | G31: 0 | I31: 0 | J31: 0 | L31: 0
A32: 1905 | B32: Land | E32: 0 | G32: 0 | I32: 0 | J32: 0 | L32: 0
A33: 1908 | B33: Buildings & Fixtures | E33: 0 | G33: 0 | I33: 0 | J33: 0 | L33: 0
A34: 1910 | B34: Leasehold Improvements | E34: 0 | G34: 0 | I34: 0 | J34: 0 | L34: 0
A35: 1915 | B35: Office Furniture & Equipment (10 years) | E35: 0 | G35: 0 | I35: 0 | J35: 0 | L35: 0
A36: 1915 | B36: Office Furniture & Equipment (5 years) | E36: 0 | G36: 0 | I36: 0 | J36: 0 | L36: 0
A37: 1920 | B37: Computer Equipment - Hardware | E37: 0 | G37: 0 | I37: 0 | J37: 0 | L37: 0
A38: 1920 | B38: Computer Equip.-Hardware(Post Mar. 22/04) | E38: 0 | G38: 0 | I38: 0 | J38: 0 | L38: 0
A39: 1920 | B39: Computer Equip.-Hardware(Post Mar. 19/07) | E39: 0 | G39: 0 | I39: 0 | J39: 0 | L39: 0
A40: 1930 | B40: Transportation Equipment | E40: 0 | G40: 0 | I40: 0 | J40: 0 | L40: 0
A41: 1935 | B41: Stores Equipment | E41: 0 | G41: 0 | I41: 0 | J41: 0 | L41: 0
A42: 1940 | B42: Tools, Shop & Garage Equipment | E42: 0 | G42: 0 | I42: 0 | J42: 0 | L42: 0
A43: 1945 | B43: Measurement & Testing Equipment | E43: 0 | G43: 0 | I43: 0 | J43: 0 | L43: 0
A44: 1950 | B44: Power Operated Equipment | E44: 0 | G44: 0 | I44: 0 | J44: 0 | L44: 0
A45: 1955 | B45: Communications Equipment | E45: 0 | G45: 0 | I45: 0 | J45: 0 | L45: 0
A46: 1955 | B46: Communication Equipment (Smart Meters) | E46: 0 | G46: 0 | I46: 0 | J46: 0 | L46: 0
A47: 1960 | B47: Miscellaneous Equipment | E47: 0 | G47: 0 | I47: 0 | J47: 0 | L47: 0
A48: 1975 | B48: Load Management Controls Utility Premises | E48: 0 | G48: 0 | I48: 0 | J48: 0 | L48: 0
A49: 1980 | B49: System Supervisor Equipment | E49: 0 | G49: 0 | I49: 0 | J49: 0 | L49: 0
A50: 1985 | B50: Miscellaneous Fixed Assets | E50: 0 | G50: 0 | I50: 0 | J50: 0 | L50: 0
A51: 1995 | B51: Contributions & Grants | E51: 0 | G51: 0 | I51: 0 | J51: 0 | L51: 0
A52: etc. | E52: 0 | G52: 0 | I52: 0 | J52: 0 | L52: 0
E53: 0 | G53: 0 | I53: 0 | J53: 0 | L53: 0
B54: Total | C54: =SUM(C16:C53) -> 0 | D54: =SUM(D16:D53) -> 0 | E54: =SUM(E16:E53) -> 0 | F54: 0 | G54: 0 | J54: =SUM(J16:J53) -> 0 | K54: =SUM(K16:K53) -> 0 | L54: =SUM(L16:L53) -> 0
A56: Notes:
A58: 1 | B58: Board policy of the "half-year" rule - the applicant must ensure that additions in the year attract a half-year depreciation expense in the first year. Deviations from this standard practice must be supported in the application.
A59: 2 | B59: The applicant must provide an explanation of material variances in evidence
A62: General: | B62: Applicants must provide a breakdown of depreciation and amortization expense in the above format for all relevant accounts. Asset Retirement Obligations (AROs), depreciation and accretion expense should be disclosed separately consistent with the Notes of historical Audited Financial Statements.

Sheet App.2-EA_PP&E Deferral Account (hidden)
H1: File Number: | I1: =#REF! -> 
H2: Exhibit:
H3: Tab:
H4: Schedule:
H5: Page:
H7: Date:
A9: Appendix 2-EA
A10: IFRS-CGAAP Transitional PP&E Amounts
A11: 2012 Adopters of IFRS for Financial Reporting Purposes
A13: For applicants that adopt IFRS on January 1, 2012 for financial reporting purposes
A15: Note: this sheet should be filled out if the applicant adopts IFRS for its financial reporting purpose as of January 1, 2012.
B17: 2009 Rebasing Year | C17: 2010 | D17: 2011 | E17: 2012 | F17: 2013 Rebasing Year | G17: 2014 | H17: 2015 | I17: 2016
A18: Reporting Basis | B18: CGAAP | C18: IRM | D18: IRM | E18: IRM | F18: MIFRS | G18: IRM | H18: IRM | I18: IRM
A19: Forecast vs. Actual Used in Rebasing Year | B19: Forecast | C19: Actual | D19: Actual | E19: Forecast | F19: Forecast
D20: $ | E20: $
A21: PP&E Values under CGAAP
A22: Opening net PP&E - Note 1
A23: Additions
A24: Depreciation (amounts should be negative)
A25: Closing net PP&E (1) | D25: =D22+D23+D24 -> 0 | E25: =E22+E23+E24 -> 0
A27: PP&E Values under MIFRS (Starts from 2011, the transition year)
A28: Opening net PP&E - Note 1
A29: Additions
A30: Depreciation (amounts should be negative)
A31: Closing net PP&E (2) | D31: =SUM(D28:D30) -> 0 | E31: =SUM(E28:E30) -> 0
A33: Difference in Closing net PP&E, CGAAP vs. MIFRS (Shown as adjustment to rate base on rebasing) | D33: =D25-D31 -> 0 | E33: =E25-E31 -> 0
A35: Account 1575 - IFRS-CGAAP Transitional PP&E Amounts
A36: Opening balance | D36: 0 | E36: =D40 -> 0 | F36: =E40 -> 0 | G36: =F40 -> 0 | H36: =G40 -> 0 | I36: =H40 -> 0
A37: Amounts added in the year | D37: =D33 -> 0 | E37: =E33-D33 -> 0
A38: Sub-total | D38: =D36+D37 -> 0 | E38: 0 | F38: 0 | G38: 0 | H38: 0 | I38: 0
A39: Amount of amortization, included in depreciation expense - Note 2 | F39: =IF(ISERROR(-E33/I44), 0, -E33/I44) -> 0 | G39: =+F39 -> 0 | H39: =+F39 -> 0 | I39: =+F39 -> 0
A40: Closing balance in deferral account | D40: =D38+D39 -> 0 | E40: 0 | F40: =IF(ISERROR(F38+F39), 0, F38+F39) -> 0 | G40: 0 | H40: 0 | I40: 0
A42: Effect on Revenue Requirement
A43: Amortization of deferred balance as above - Note 2 | F43: =IF(ISERROR(E33/I44), 0, E33/I44) -> 0 | H43: WACC
A44: Return on Rate Base Associated with deferred PP&E balance at WACC - Note 3 | F44: =E33*I43 -> 0 | H44: Disposition Period - Note 4 | I44: 4 | J44: Years
A45: Amount included in Revenue Requirement on rebasing | F45: =F43+F44 -> 0
A47: Notes:
A48: 1 For an applicant that adopts IFRS on January 1, 2012, the PP&E values as of January 1, 2011 under both CGAAP and MIFRS should be the same.
A49: 2 Amortization of the deferred balance in Account 1575 will start from the rebasing year.
A50: Assume the utility requests for a certain disposition period, the amortization that should be included in the depreciation expense is calculated as:
A51: the opening balance of Account 1575 / the approved disposition period
A52: 3 Return on rate base associated with deferred balance is calculated as:
A53: the deferred account opening balance as of 2013 rebasing year x WACC
A54: * Please note that the calculation should be adjusted once WACC is updated and finalized in the rate application.
A55: 4 Consistent with the 4 year normal rate cycle, the model is using a 4 year amortization period as a default selection to "clear" the PP&E deferral account through a one-time adjustment to ratebase to capture and remove the impact of the accounting policy changes as caused by the transition from CGAAP to MIFRS.

Sheet App.2-W_Bill Impacts_RES800
N1: File Number: | O1: ='[2]LDC Info'!$E$18 -> EB2012-0176 | T1: 1
N2: Exhibit:
N3: Tab:
N4: Schedule:
N5: Page:
N7: Date:
B10: Appendix 2-W
B11: Bill Impacts
B14: Customer Class: | D14: Residential
D16: Consumption | F16: 800 | G16: kWh
F18: Current Board-Approved | J18: Proposed | N18: Impact
D19: Charge Unit | F19: Rate | G19: Volume | H19: Charge | J19: Rate | K19: Volume | L19: Charge | N19: $ Change | O19: % Change
F20: ($) | H20: ($) | J20: ($) | L20: ($)
B21: Monthly Service Charge | D21: per kWh | F21: 11.34 | G21: 1 | H21: =G21*F21 -> 11.34 | J21: 13.24 | K21: 1 | L21: =K21*J21 -> 13.24 | N21: =L21-H21 -> 1.9 | O21: =IF((H21)=0,"",(N21/H21)) -> 0.1675485009
B22: Smart Meter Rate Adder | D22: Monthly | G22: 1 | H22: =G22*F22 -> 0 | K22: 1 | L22: =K22*J22 -> 0 | N22: =L22-H22 -> 0 | O22: =IF((H22)=0,"",(N22/H22)) -> 
B23: SMDR | D23: Monthly | G23: 1 | H23: 0 | J23: 0.19 | K23: 1 | L23: =K23*J23 -> 0.19 | N23: =L23-H23 -> 0.19 | O23: =IF((H23)=0,"",(N23/H23)) -> 
B24: Stranded Meter Rate Rider | D24: Monthly | G24: 1 | H24: 0 | J24: 0.67 | K24: 1 | L24: 0.67 | N24: 0.67
G25: 1 | H25: 0 | K25: 1 | L25: 0 | N25: 0
G26: 1 | H26: 0 | K26: 1 | L26: 0 | N26: 0
B27: Distribution Volumetric Rate | D27: per kWh | F27: 0.0142 | G27: =$F$16 -> 800 | H27: 11.36 | J27: 0.0166 | K27: =$F$16 -> 800 | L27: 13.28 | N27: 1.92 | O27: 0.1690140845
B28: Smart Meter Disposition Rider | G28: =$F$16 -> 800 | H28: 0 | K28: =$F$16 -> 800 | L28: 0 | N28: 0
B29: LRAM & SSM Rate Rider | D29: per kWh | F29: 0.0007 | G29: =$F$16 -> 800 | H29: 0.56 | K29: 800 | L29: 0 | N29: -0.56 | O29: -1
B30: Rate Rider for Tax Adjustments | D30: per kWh | F30: -0.0003 | G30: =$F$16 -> 800 | H30: -0.24 | K30: 800 | L30: 0 | N30: 0.24 | O30: -1
D31: per kWh | G31: 800 | H31: 0 | K31: 800 | L31: 0 | N31: 0
G32: 800 | H32: 0 | K32: 800 | L32: 0 | N32: 0
G33: 800 | H33: 0 | K33: 800 | L33: 0 | N33: 0
G34: 800 | H34: 0 | K34: 800 | L34: 0 | N34: 0
G35: 800 | H35: 0 | K35: 800 | L35: 0 | N35: 0
G36: 800 | H36: 0 | K36: 800 | L36: 0 | N36: 0
B37: Sub-Total A | H37: =SUM(H21:H36) -> 23.02 | L37: =SUM(L21:L36) -> 27.38 | N37: 4.36 | O37: 0.1894005213
B38: Deferral/Variance Account Disposition Rate Rider | D38: per kWh | F38: -0.0015 | G38: =$F$16 -> 800 | H38: =G38*F38 -> -1.2 | J38: 0.0026 | K38: =$F$16 -> 800 | L38: =K38*J38 -> 2.08 | N38: =L38-H38 -> 3.28 | O38: =IF((H38)=0,"",(N38/H38)) -> -2.733333333
G39: =$F$16 -> 800 | H39: =G39*F39 -> 0 | K39: =$F$16 -> 800 | L39: =K39*J39 -> 0 | N39: =L39-H39 -> 0 | O39: =IF((H39)=0,"",(N39/H39)) -> 
G40: 800 | H40: 0 | K40: 800 | L40: 0 | N40: 0
G41: 800 | H41: 0 | K41: 800 | L41: 0 | N41: 0
B42: Low Voltage Service Charge | F42: 0.0012 | G42: 800 | H42: =G42*F42 -> 0.96 | J42: 0.0017 | K42: 800 | L42: =K42*J42 -> 1.36 | N42: =L42-H42 -> 0.4 | O42: =IF((H42)=0,"",(N42/H42)) -> 0.4166666667
B43: Smart Meter Entity Charge | K43: 800 | L43: =K43*J43 -> 0 | N43: =L43-H43 -> 0
B44: Sub-Total B - Distribution (includes Sub-Total A) | H44: =SUM(H38:H42)+H37 -> 22.78 | L44: =SUM(L38:L42)+L37 -> 30.82 | N44: =L44-H44 -> 8.04 | O44: =IF((H44)=0,"",(N44/H44)) -> 0.3529411765
B45: RTSR - Network | D45: per kWh | F45: 0.0052 | G45: =F16*(1+F71) -> 863.04 | H45: =G45*F45 -> 4.487808 | J45: 0.0059 | K45: =F16*(1+J71) -> 856 | L45: =K45*J45 -> 5.0504 | N45: 0.562592 | O45: 0.1253600867
B46: RTSR - Line and Transformation Connection | D46: per kWh | F46: 0.0019 | G46: =G45 -> 863.04 | H46: =G46*F46 -> 1.639776 | J46: 0.0021 | K46: =K45 -> 856 | L46: =K46*J46 -> 1.7976 | N46: 0.157824 | O46: 0.09624729231
B47: Sub-Total C - Delivery (including Sub-Total B) | H47: =SUM(H44:H46) -> 28.907584 | L47: =SUM(L44:L46) -> 37.668 | N47: 8.760416 | O47: 0.3030490545
B48: Wholesale Market Service Charge (WMSC) | D48: per kWh | F48: 0.0052 | G48: =G46 -> 863.04 | H48: =G48*F48 -> 4.487808 | J48: 0.0052 | K48: =K46 -> 856 | L48: =K48*J48 -> 4.4512 | N48: -0.036608 | O48: -0.008157211717
B49: Rural and Remote Rate Protection (RRRP) | D49: per kWh | F49: 0.0011 | G49: =G46 -> 863.04 | H49: 0.949344 | J49: 0.0011 | K49: =K46 -> 856 | L49: 0.9416 | N49: -0.007744 | O49: -0.008157211717
B50: Standard Supply Service Charge | D50: Monthly | F50: 0.25 | G50: 1 | H50: 0.25 | J50: 0.25 | K50: 1 | L50: 0.25 | N50: 0 | O50: 0
B51: Debt Retirement Charge (DRC) | D51: per kWh | F51: 0.0007 | G51: =G49 -> 863.04 | H51: 0.604128 | J51: 0.0007 | K51: =K49 -> 856 | L51: 0.5992 | N51: -0.004928 | O51: -0.008157211717
B52: Energy - RPP - Tier 1 | D52: per kWh | F52: 0.075 | G52: =IF($T$1=1,IF($F$16>=600,600,IF($F$16<600,$F$16*(1+$F$71),$F$16-600)),IF($T$1=2,IF($F$16>=1000,1000,IF($F$16<1000,$F$16*(1+$F$71),$F$16-1000)))) -> 600 | H52: =G52*F52 -> 45 | J52: 0.075 | K52: =IF($T$1=1,IF($F$16>=600,600,IF($F$16<600,$F$16*(1+$J$71),$F$16-600)),IF($T$1=2,IF($F$16>=1000,1000,IF($F$16<1000,$F$16*(1+$J$71),$F$16-1000)))) -> 600 | L52: =K52*J52 -> 45 | N52: 0 | O52: 0
B53: Energy - RPP - Tier 2 | D53: per kWh | F53: 0.088 | G53: =IF($T$1=1,IF($F$16>=600,$F$16*(1+$F$71)-600,IF($F$16<600,0,)), IF($T$1=2,IF($F$16>=1000,$F$16*(1+$F$71)-1000,IF($F$16<1000,0)))) -> 263.04 | H53: =G53*F53 -> 23.14752 | J53: 0.088 | K53: =IF($T$1=1,IF($F$16>=600,$F$16*(1+$J$71)-600,IF($F$16<600,0,)), IF($T$1=2,IF($F$16>=1000,$F$16*(1+$J$71)-1000,IF($F$16<1000,0)))) -> 256 | L53: =K53*J53 -> 22.528 | N53: -0.61952 | O53: -0.02676399027
B54: TOU - Off Peak | D54: per kWh | F54: 0.065 | G54: =0.64*$F$16*(1+$F$71) -> 552.3456 | H54: 35.902464 | J54: 0.065 | K54: =0.64*$F$16*(1+$J$71) -> 547.84 | L54: 35.6096 | N54: -0.292864 | O54: -0.008157211717
B55: TOU - Mid Peak | D55: per kWh | F55: 0.1 | G55: =0.18*$F$16*(1+$F$71) -> 155.3472 | H55: 15.53472 | J55: 0.1 | K55: =0.18*$F$16*(1+$J$71) -> 154.08 | L55: 15.408 | N55: -0.12672 | O55: -0.008157211717
B56: TOU - On Peak | D56: per kWh | F56: 0.117 | G56: =0.18*$F$16*(1+$F$71) -> 155.3472 | H56: 18.1756224 | J56: 0.117 | K56: =0.18*$F$16*(1+$J$71) -> 154.08 | L56: 18.02736 | N56: -0.1482624 | O56: -0.008157211717
B58: Total Bill on RPP (before Taxes) | H58: =SUM(H47:H53) -> 103.346384 | L58: =SUM(L47:L53) -> 111.438 | N58: 8.091616 | O58: 0.07829607275
B59: HST | F59: 0.13 | H59: =H58*F59 -> 13.43502992 | J59: 0.13 | L59: =L58*J59 -> 14.48694 | N59: 1.05191008 | O59: 0.07829607275
B60: Total Bill (including HST) | H60: =H58+H59 -> 116.7814139 | L60: =L58+L59 -> 125.92494 | N60: 9.14352608 | O60: 0.07829607275
B61: Ontario Clean Energy Benefit 1 | H61: =ROUND(-H60*10%,2) -> -11.68 | L61: =ROUND(-L60*10%,2) -> -12.59 | N61: -0.91 | O61: 0.0779109589
B62: Total Bill on RPP (including OCEB) | H62: =SUM(H60:H61) -> 105.1014139 | L62: =SUM(L60:L61) -> 113.33494 | N62: 8.23352608 | O62: 0.07833887074
B64: Total Bill on TOU (before Taxes) | H64: =SUM(H47:H51,H54:H56) -> 104.8116704 | L64: =SUM(L47:L51,L54:L56) -> 112.95496 | N64: =L64-H64 -> 8.1432896 | O64: =IF((H64)=0,"",(N64/H64)) -> 0.07769449307
B65: HST | F65: 0.13 | H65: =H64*F65 -> 13.62551715 | J65: 0.13 | L65: =L64*J65 -> 14.6841448 | N65: 1.058627648 | O65: 0.07769449307
B66: Total Bill (including HST) | H66: =H64+H65 -> 118.4371876 | L66: =L64+L65 -> 127.6391048 | N66: 9.201917248 | O66: 0.07769449307
B67: Ontario Clean Energy Benefit 1 | H67: =ROUND(-H66*10%,2) -> -11.84 | L67: =ROUND(-L66*10%,2) -> -12.76 | N67: -0.92 | O67: 0.0777027027
B68: Total Bill on TOU (including OCEB) | H68: =H66+H67 -> 106.5971876 | L68: =L66+L67 -> 114.8791048 | N68: 8.281917248 | O68: 0.07769358121
B71: Loss Factor (%) | F71: 0.0788 | J71: 0.07
A73: 1 Applicable to eligible customers only. Refer to the Ontario Clean Energy Benefit Act, 2010.
A75: Note that the "Charge $" columns provide breakdowns of the amounts that each bill component contributes to the total monthly bill at the referenced
A76: consumption level at existing and proposed rates.
A78: Applicants must provide bill impacts for residential at 800 kWh and GS<50kW at 2000 kWh. In addition, their filing should cover the range that is relevant
A79: to their service territory, class by class. A general guideline of consumption levels follows:
A81: Residential (kWh) - 100, 250, 500, 800, 1000, 1500, 2000
A82: GS<50kW (kWh) - 1000, 2000, 5000, 10000, 15000
A83: GS>50kW (kW) - 60, 100, 500, 1000
A84: Large User - range appropriate for utility
A85: Lighting Classes and USL - 150 kWh and 1 kW, range appropriate for utility.

Sheet App.2-W_Bill Impacts_GS<50
N1: File Number: | O1: ='[2]LDC Info'!$E$18 -> EB2012-0176 | T1: 1
N2: Exhibit:
N3: Tab:
N4: Schedule:
N5: Page:
N7: Date:
B10: Appendix 2-W
B11: Bill Impacts
B14: Customer Class: | D14: GS<50
D16: Consumption | F16: 2000 | G16: kWh
F18: Current Board-Approved | J18: Proposed | N18: Impact
D19: Charge Unit | F19: Rate | G19: Volume | H19: Charge | J19: Rate | K19: Volume | L19: Charge | N19: $ Change | O19: % Change
F20: ($) | H20: ($) | J20: ($) | L20: ($)
B21: Monthly Service Charge | D21: per kWh | F21: 20.77 | G21: 1 | H21: =G21*F21 -> 20.77 | J21: 20.77 | K21: 1 | L21: =K21*J21 -> 20.77 | N21: =L21-H21 -> 0 | O21: =IF((H21)=0,"",(N21/H21)) -> 0
B22: Smart Meter Rate Adder | D22: Monthly | G22: 1 | H22: =G22*F22 -> 0 | K22: 1 | L22: 0 | N22: =L22-H22 -> 0 | O22: =IF((H22)=0,"",(N22/H22)) -> 
B23: SMDR | D23: Monthly | G23: 1 | H23: 0 | J23: 2.06 | K23: 1 | L23: 2.06 | N23: =L23-H23 -> 2.06 | O23: =IF((H23)=0,"",(N23/H23)) -> 
B24: Stranded Meter Rate Rider | D24: Monthly | G24: 1 | H24: 0 | J24: 4.16 | K24: 1 | L24: 4.16 | N24: 4.16
G25: 1 | H25: 0 | K25: 1 | L25: 0 | N25: 0
G26: 1 | H26: 0 | K26: 1 | L26: 0 | N26: 0
B27: Distribution Volumetric Rate | D27: per kWh | F27: 0.0092 | G27: =$F$16 -> 2000 | H27: 18.4 | J27: 0.0113 | K27: =$F$16 -> 2000 | L27: 22.6 | N27: 4.2 | O27: 0.2282608696
B28: Smart Meter Disposition Rider | G28: =$F$16 -> 2000 | H28: 0 | K28: =$F$16 -> 2000 | L28: 0 | N28: 0
B29: LRAM & SSM Rate Rider | D29: per kWh | F29: 0.0002 | G29: =$F$16 -> 2000 | H29: 0.4 | K29: 2000 | L29: 0 | N29: -0.4 | O29: -1
B30: Rate Rider for Tax Adjustments | D30: per kWh | F30: -0.0002 | G30: =$F$16 -> 2000 | H30: -0.4 | K30: 2000 | L30: 0 | N30: 0.4 | O30: -1
D31: per kWh | G31: 2000 | H31: 0 | K31: 2000 | L31: 0 | N31: 0
G32: 2000 | H32: 0 | K32: 2000 | L32: 0 | N32: 0
G33: 2000 | H33: 0 | K33: 2000 | L33: 0 | N33: 0
G34: 2000 | H34: 0 | K34: 2000 | L34: 0 | N34: 0
G35: 2000 | H35: 0 | K35: 2000 | L35: 0 | N35: 0
G36: 2000 | H36: 0 | K36: 2000 | L36: 0 | N36: 0
B37: Sub-Total A | H37: =SUM(H21:H36) -> 39.17 | L37: =SUM(L21:L36) -> 49.59 | N37: 10.42 | O37: 0.2660199132
B38: Deferral/Variance Account Disposition Rate Rider | D38: per kWh | F38: -0.0015 | G38: =$F$16 -> 2000 | H38: =G38*F38 -> -3 | J38: 0.0026 | K38: =$F$16 -> 2000 | L38: =K38*J38 -> 5.2 | N38: =L38-H38 -> 8.2 | O38: =IF((H38)=0,"",(N38/H38)) -> -2.733333333
G39: =$F$16 -> 2000 | H39: =G39*F39 -> 0 | K39: =$F$16 -> 2000 | L39: =K39*J39 -> 0 | N39: =L39-H39 -> 0 | O39: =IF((H39)=0,"",(N39/H39)) -> 
G40: 2000 | H40: 0 | K40: 2000 | L40: 0 | N40: 0
G41: 2000 | H41: 0 | K41: 2000 | L41: 0 | N41: 0
B42: Low Voltage Service Charge | F42: 0.0011 | G42: 2000 | H42: =G42*F42 -> 2.2 | J42: 0.0015 | K42: 2000 | L42: =K42*J42 -> 3 | N42: =L42-H42 -> 0.8 | O42: =IF((H42)=0,"",(N42/H42)) -> 0.3636363636
B43: Smart Meter Entity Charge | K43: 2000 | L43: =K43*J43 -> 0 | N43: =L43-H43 -> 0
B44: Sub-Total B - Distribution (includes Sub-Total A) | H44: =SUM(H38:H42)+H37 -> 38.37 | L44: =SUM(L38:L42)+L37 -> 57.79 | N44: =L44-H44 -> 19.42 | O44: =IF((H44)=0,"",(N44/H44)) -> 0.5061245765
B45: RTSR - Network | D45: per kWh | F45: 0.0048 | G45: =F16*(1+F71) -> 2157.6 | H45: =G45*F45 -> 10.35648 | J45: 0.0054 | K45: =F16*(1+J71) -> 2140 | L45: =K45*J45 -> 11.556 | N45: 1.19952 | O45: 0.1158231368
B46: RTSR - Line and Transformation Connection | D46: per kWh | F46: 0.0017 | G46: =G45 -> 2157.6 | H46: =G46*F46 -> 3.66792 | J46: 0.0019 | K46: =K45 -> 2140 | L46: =K46*J46 -> 4.066 | N46: 0.39808 | O46: 0.1085301751
B47: Sub-Total C - Delivery (including Sub-Total B) | H47: =SUM(H44:H46) -> 52.3944 | L47: =SUM(L44:L46) -> 73.412 | N47: 21.0176 | O47: 0.4011421068
B48: Wholesale Market Service Charge (WMSC) | D48: per kWh | F48: 0.0052 | G48: =G46 -> 2157.6 | H48: =G48*F48 -> 11.21952 | J48: 0.0052 | K48: =K46 -> 2140 | L48: =K48*J48 -> 11.128 | N48: -0.09152 | O48: -0.008157211717
B49: Rural and Remote Rate Protection (RRRP) | D49: per kWh | F49: 0.0011 | G49: =G46 -> 2157.6 | H49: 2.37336 | J49: 0.0011 | K49: =K46 -> 2140 | L49: 2.354 | N49: -0.01936 | O49: -0.008157211717
B50: Standard Supply Service Charge | D50: Monthly | F50: 0.25 | G50: 1 | H50: 0.25 | J50: 0.25 | K50: 1 | L50: 0.25 | N50: 0 | O50: 0
B51: Debt Retirement Charge (DRC) | D51: per kWh | F51: 0.0007 | G51: =G49 -> 2157.6 | H51: 1.51032 | J51: 0.0007 | K51: =K49 -> 2140 | L51: 1.498 | N51: -0.01232 | O51: -0.008157211717
B52: Energy - RPP - Tier 1 | D52: per kWh | F52: 0.075 | G52: =IF($T$1=1,IF($F$16>=600,600,IF($F$16<600,$F$16*(1+$F$71),$F$16-600)),IF($T$1=2,IF($F$16>=1000,1000,IF($F$16<1000,$F$16*(1+$F$71),$F$16-1000)))) -> 600 | H52: =G52*F52 -> 45 | J52: 0.075 | K52: =IF($T$1=1,IF($F$16>=600,600,IF($F$16<600,$F$16*(1+$J$71),$F$16-600)),IF($T$1=2,IF($F$16>=1000,1000,IF($F$16<1000,$F$16*(1+$J$71),$F$16-1000)))) -> 600 | L52: =K52*J52 -> 45 | N52: 0 | O52: 0
B53: Energy - RPP - Tier 2 | D53: per kWh | F53: 0.088 | G53: =IF($T$1=1,IF($F$16>=600,$F$16*(1+$F$71)-600,IF($F$16<600,0,)), IF($T$1=2,IF($F$16>=1000,$F$16*(1+$F$71)-1000,IF($F$16<1000,0)))) -> 1557.6 | H53: =G53*F53 -> 137.0688 | J53: 0.088 | K53: =IF($T$1=1,IF($F$16>=600,$F$16*(1+$J$71)-600,IF($F$16<600,0,)), IF($T$1=2,IF($F$16>=1000,$F$16*(1+$J$71)-1000,IF($F$16<1000,0)))) -> 1540 | L53: =K53*J53 -> 135.52 | N53: -1.5488 | O53: -0.01129943503
B54: TOU - Off Peak | D54: per kWh | F54: 0.065 | G54: =0.64*$F$16*(1+$F$71) -> 1380.864 | H54: 89.75616 | J54: 0.065 | K54: =0.64*$F$16*(1+$J$71) -> 1369.6 | L54: 89.024 | N54: -0.73216 | O54: -0.008157211717
B55: TOU - Mid Peak | D55: per kWh | F55: 0.1 | G55: =0.18*$F$16*(1+$F$71) -> 388.368 | H55: 38.8368 | J55: 0.1 | K55: =0.18*$F$16*(1+$J$71) -> 385.2 | L55: 38.52 | N55: -0.3168 | O55: -0.008157211717
B56: TOU - On Peak | D56: per kWh | F56: 0.117 | G56: =0.18*$F$16*(1+$F$71) -> 388.368 | H56: 45.439056 | J56: 0.117 | K56: =0.18*$F$16*(1+$J$71) -> 385.2 | L56: 45.0684 | N56: -0.370656 | O56: -0.008157211717
B58: Total Bill on RPP (before Taxes) | H58: =SUM(H47:H53) -> 249.8164 | L58: =SUM(L47:L53) -> 269.162 | N58: 19.3456 | O58: 0.0774392714
B59: HST | F59: 0.13 | H59: =H58*F59 -> 32.476132 | J59: 0.13 | L59: =L58*J59 -> 34.99106 | N59: 2.514928 | O59: 0.0774392714
B60: Total Bill (including HST) | H60: =H58+H59 -> 282.292532 | L60: =L58+L59 -> 304.15306 | N60: 21.860528 | O60: 0.0774392714
B61: Ontario Clean Energy Benefit 1 | H61: =ROUND(-H60*10%,2) -> -28.23 | L61: =ROUND(-L60*10%,2) -> -30.42 | N61: -2.19 | O61: 0.0775770457
B62: Total Bill on RPP (including OCEB) | H62: =SUM(H60:H61) -> 254.062532 | L62: =SUM(L60:L61) -> 273.73306 | N62: 19.670528 | O62: 0.0774239627
B64: Total Bill on TOU (before Taxes) | H64: =SUM(H47:H51,H54:H56) -> 241.779616 | L64: =SUM(L47:L51,L54:L56) -> 261.2544 | N64: =L64-H64 -> 19.474784 | O64: =IF((H64)=0,"",(N64/H64)) -> 0.08054766701
B65: HST | F65: 0.13 | H65: =H64*F65 -> 31.43135008 | J65: 0.13 | L65: =L64*J65 -> 33.963072 | N65: 2.53172192 | O65: 0.08054766701
B66: Total Bill (including HST) | H66: =H64+H65 -> 273.2109661 | L66: =L64+L65 -> 295.217472 | N66: 22.00650592 | O66: 0.08054766701
B67: Ontario Clean Energy Benefit 1 | H67: =ROUND(-H66*10%,2) -> -27.32 | L67: =ROUND(-L66*10%,2) -> -29.52 | N67: -2.2 | O67: 0.08052708638
B68: Total Bill on TOU (including OCEB) | H68: =H66+H67 -> 245.8909661 | L68: =L66+L67 -> 265.697472 | N68: 19.80650592 | O68: 0.08054995365
B71: Loss Factor (%) | F71: 0.0788 | J71: 0.07
A73: 1 Applicable to eligible customers only. Refer to the Ontario Clean Energy Benefit Act, 2010.
A75: Note that the "Charge $" columns provide breakdowns of the amounts that each bill component contributes to the total monthly bill at the referenced
A76: consumption level at existing and proposed rates.
A78: Applicants must provide bill impacts for residential at 800 kWh and GS<50kW at 2000 kWh. In addition, their filing should cover the range that is relevant
A79: to their service territory, class by class. A general guideline of consumption levels follows:
A81: Residential (kWh) - 100, 250, 500, 800, 1000, 1500, 2000
A82: GS<50kW (kWh) - 1000, 2000, 5000, 10000, 15000
A83: GS>50kW (kW) - 60, 100, 500, 1000
A84: Large User - range appropriate for utility
A85: Lighting Classes and USL - 150 kWh and 1 kW, range appropriate for utility.

Sheet App.2-W_Bill Impacts_GS>50
N1: File Number: | O1: ='[2]LDC Info'!$E$18 -> EB2012-0176 | T1: 1
N2: Exhibit:
N3: Tab:
N4: Schedule:
N5: Page:
N7: Date:
B10: Appendix 2-W
B11: Bill Impacts
B14: Customer Class: | D14: GS 50 to 4,999 kW
D16: Consumption | F16: 50000 | G16: kWh
F17: 140 | G17: KW
F18: Current Board-Approved | J18: Proposed | N18: Impact
D19: Charge Unit | F19: Rate | G19: Volume | H19: Charge | J19: Rate | K19: Volume | L19: Charge | N19: $ Change | O19: % Change
F20: ($) | H20: ($) | J20: ($) | L20: ($)
B21: Monthly Service Charge | D21: Monthly | F21: 240.15 | G21: 1 | H21: =G21*F21 -> 240.15 | J21: 205.17 | K21: =+G21 -> 1 | L21: =K21*J21 -> 205.17 | N21: =L21-H21 -> -34.98 | O21: =IF((H21)=0,"",(N21/H21)) -> -0.1456589631
B22: Smart Meter Rate Adder | D22: Monthly | G22: 1 | H22: =G22*F22 -> 0 | K22: =+G22 -> 1 | L22: 0 | N22: =L22-H22 -> 0 | O22: =IF((H22)=0,"",(N22/H22)) -> 
B23: SMDR | D23: Monthly | G23: 1 | H23: 0 | J23: 1.53 | K23: 1 | L23: 1.53 | N23: =L23-H23 -> 1.53 | O23: =IF((H23)=0,"",(N23/H23)) -> 
B24: Stranded Meter Rate Rider | D24: Monthly | G24: 1 | H24: 0 | K24: 1 | L24: 0 | N24: 0
G25: 1 | H25: 0 | K25: 1 | L25: 0 | N25: 0
G26: 1 | H26: 0 | K26: 1 | L26: 0 | N26: 0
B27: Distribution Volumetric Rate | D27: per kW | F27: 2.2373 | G27: =+$F$17 -> 140 | H27: 313.222 | J27: 1.9398 | K27: 140 | L27: 271.572 | N27: -41.65 | O27: -0.1329727797
B28: Smart Meter Disposition Rider | G28: =+$F$17 -> 140 | H28: 0 | K28: 140 | L28: 0 | N28: 0
B29: LRAM & SSM Rate Rider | D29: per kW | F29: 0.0244 | G29: 140 | H29: 3.416 | K29: 140 | L29: 0 | N29: -3.416 | O29: -1
B30: Rate Rider for Tax Adjustments | D30: per kW | F30: -0.0371 | G30: 140 | H30: -5.194 | K30: 140 | L30: 0 | N30: 5.194 | O30: -1
D31: per kWh | G31: 140 | H31: 0 | K31: 140 | L31: 0 | N31: 0
G32: 140 | H32: 0 | K32: 140 | L32: 0 | N32: 0
G33: 140 | H33: 0 | K33: 140 | L33: 0 | N33: 0
G34: 140 | H34: 0 | K34: 140 | L34: 0 | N34: 0
G35: 140 | H35: 0 | K35: 140 | L35: 0 | N35: 0
G36: 140 | H36: 0 | K36: 140 | L36: 0 | N36: 0
B37: Sub-Total A | H37: =SUM(H21:H36) -> 551.594 | L37: =SUM(L21:L36) -> 478.272 | N37: -73.322 | O37: -0.1329274793
B38: Deferral/Variance Account Disposition Rate Rider | D38: per kW | F38: -0.577 | G38: =+$F$17 -> 140 | H38: =G38*F38 -> -80.78 | J38: 0.9059 | K38: 140 | L38: =K38*J38 -> 126.826 | N38: =L38-H38 -> 207.606 | O38: =IF((H38)=0,"",(N38/H38)) -> -2.570017331
B39: Global Adjustment Rate Rider | D39: per kW | F39: -0.1048 | G39: =+$F$17 -> 140 | H39: =G39*F39 -> -14.672 | J39: 0.5984 | K39: 140 | L39: =K39*J39 -> 83.776 | N39: =L39-H39 -> 98.448 | O39: =IF((H39)=0,"",(N39/H39)) -> -6.709923664
G40: =+$F$17 -> 140 | H40: 0 | K40: 140 | L40: 0 | N40: 0
G41: =+$F$17 -> 140 | H41: 0 | K41: 140 | L41: 0 | N41: 0
B42: Low Voltage Service Charge | D42: per kW | F42: 0.399 | G42: =+$F$17 -> 140 | H42: =G42*F42 -> 55.86 | J42: 0.5697 | K42: 140 | L42: =K42*J42 -> 79.758 | N42: =L42-H42 -> 23.898 | O42: =IF((H42)=0,"",(N42/H42)) -> 0.4278195489
B43: Smart Meter Entity Charge | K43: 0 | L43: =K43*J43 -> 0 | N43: =L43-H43 -> 0
B44: Sub-Total B - Distribution (includes Sub-Total A) | H44: =SUM(H38:H42)+H37 -> 512.002 | L44: =SUM(L38:L42)+L37 -> 768.632 | N44: =L44-H44 -> 256.63 | O44: =IF((H44)=0,"",(N44/H44)) -> 0.5012285108
B45: RTSR - Network | D45: per kW | F45: 1.9887 | G45: =+$F$17 -> 140 | H45: =G45*F45 -> 278.418 | J45: 2.2487 | K45: 140 | L45: =K45*J45 -> 314.818 | N45: 36.4 | O45: 0.1307386735
B46: RTSR - Line and Transformation Connection | D46: per kW | F46: 0.6929 | G46: =G45 -> 140 | H46: =G46*F46 -> 97.006 | J46: 0.7766 | K46: 140 | L46: =K46*J46 -> 108.724 | N46: 11.718 | O46: 0.1207966518
B47: Sub-Total C - Delivery (including Sub-Total B) | H47: =SUM(H44:H46) -> 887.426 | L47: =SUM(L44:L46) -> 1192.174 | N47: 304.748 | O47: 0.3434066615
B48: Wholesale Market Service Charge (WMSC) | D48: per kWh | F48: 0.0052 | G48: =+$F$16 -> 50000 | H48: =G48*F48 -> 260 | J48: 0.0052 | K48: 50000 | L48: =K48*J48 -> 260 | N48: 0 | O48: 0
B49: Rural and Remote Rate Protection (RRRP) | D49: per kWh | F49: 0.0011 | G49: =+$F$16 -> 50000 | H49: 55 | J49: 0.0011 | K49: 50000 | L49: 55 | N49: 0 | O49: 0
B50: Standard Supply Service Charge | D50: Monthly | F50: 0.25 | G50: 1 | H50: 0.25 | J50: 0.25 | K50: 1 | L50: 0.25 | N50: 0 | O50: 0
B51: Debt Retirement Charge (DRC) | D51: per kWh | F51: 0.0007 | G51: =G49 -> 50000 | H51: 35 | J51: 0.0007 | K51: 50000 | L51: 35 | N51: 0 | O51: 0
B52: Energy - RPP - Tier 1 | D52: per kWh | F52: 0.075 | G52: =IF($T$1=1,IF($F$16>=600,600,IF($F$16<600,$F$16*(1+$F$71),$F$16-600)),IF($T$1=2,IF($F$16>=1000,1000,IF($F$16<1000,$F$16*(1+$F$71),$F$16-1000)))) -> 600 | H52: =G52*F52 -> 45 | J52: 0.075 | K52: 600 | L52: =K52*J52 -> 45 | N52: 0 | O52: 0
B53: Energy - RPP - Tier 2 | D53: per kWh | F53: 0.088 | G53: =IF($T$1=1,IF($F$16>=600,$F$16*(1+$F$71)-600,IF($F$16<600,0,)), IF($T$1=2,IF($F$16>=1000,$F$16*(1+$F$71)-1000,IF($F$16<1000,0)))) -> 53340 | H53: =G53*F53 -> 4693.92 | J53: 0.088 | K53: 53340 | L53: =K53*J53 -> 4693.92 | N53: 0 | O53: 0
B54: TOU - Off Peak | D54: per kWh | F54: 0.065 | G54: =0.64*$F$16*(1+$F$71) -> 34521.6 | H54: 2243.904 | J54: 0.065 | K54: 34521.6 | L54: 2243.904 | N54: 0 | O54: 0
B55: TOU - Mid Peak | D55: per kWh | F55: 0.1 | G55: =0.18*$F$16*(1+$F$71) -> 9709.2 | H55: 970.92 | J55: 0.1 | K55: 9709.2 | L55: 970.92 | N55: 0 | O55: 0
B56: TOU - On Peak | D56: per kWh | F56: 0.117 | G56: =0.18*$F$16*(1+$F$71) -> 9709.2 | H56: 1135.9764 | J56: 0.117 | K56: 9709.2 | L56: 1135.9764 | N56: 0 | O56: 0
B58: Total Bill on RPP (before Taxes) | H58: =SUM(H47:H53) -> 5976.596 | L58: =SUM(L47:L53) -> 6281.344 | N58: 304.748 | O58: 0.05099022922
B59: HST | F59: 0.13 | H59: =H58*F59 -> 776.95748 | J59: 0.13 | L59: =L58*J59 -> 816.57472 | N59: 39.61724 | O59: 0.05099022922
B60: Total Bill (including HST) | H60: =H58+H59 -> 6753.55348 | L60: =L58+L59 -> 7097.91872 | N60: 344.36524 | O60: 0.05099022922
B61: Ontario Clean Energy Benefit 1 | H61: =ROUND(-H60*10%,2) -> -675.36 | L61: =ROUND(-L60*10%,2) -> -709.79 | N61: -34.43 | O61: 0.05098021796
B62: Total Bill on RPP (including OCEB) | H62: =SUM(H60:H61) -> 6078.19348 | L62: =SUM(L60:L61) -> 6388.12872 | N62: 309.93524 | O62: 0.05099134159
B64: Total Bill on TOU (before Taxes) | H64: =SUM(H47:H51,H54:H56) -> 5588.4764 | L64: =SUM(L47:L51,L54:L56) -> 5893.2244 | N64: =L64-H64 -> 304.748 | O64: =IF((H64)=0,"",(N64/H64)) -> 0.05453149986
B65: HST | F65: 0.13 | H65: =H64*F65 -> 726.501932 | J65: 0.13 | L65: =L64*J65 -> 766.119172 | N65: 39.61724 | O65: 0.05453149986
B66: Total Bill (including HST) | H66: =H64+H65 -> 6314.978332 | L66: =L64+L65 -> 6659.343572 | N66: 344.36524 | O66: 0.05453149986
B67: Ontario Clean Energy Benefit 1 | H67: =ROUND(-H66*10%,2) -> -631.5 | L67: =ROUND(-L66*10%,2) -> -665.93 | N67: -34.43 | O67: 0.05452098179
B68: Total Bill on TOU (including OCEB) | H68: =H66+H67 -> 5683.478332 | L68: =L66+L67 -> 5993.413572 | N68: 309.93524 | O68: 0.05453266853
B71: Loss Factor (%) | F71: 0.0788 | J71: 0.07
A73: 1 Applicable to eligible customers only. Refer to the Ontario Clean Energy Benefit Act, 2010.
A75: Note that the "Charge $" columns provide breakdowns of the amounts that each bill component contributes to the total monthly bill at the referenced
A76: consumption level at existing and proposed rates.
A78: Applicants must provide bill impacts for residential at 800 kWh and GS<50kW at 2000 kWh. In addition, their filing should cover the range that is relevant
A79: to their service territory, class by class. A general guideline of consumption levels follows:
A81: Residential (kWh) - 100, 250, 500, 800, 1000, 1500, 2000
A82: GS<50kW (kWh) - 1000, 2000, 5000, 10000, 15000
A83: GS>50kW (kW) - 60, 100, 500, 1000
A84: Large User - range appropriate for utility
A85: Lighting Classes and USL - 150 kWh and 1 kW, range appropriate for utility.

Sheet App.2-W_Bill Impacts_USL
N1: File Number: | O1: ='[2]LDC Info'!$E$18 -> EB2012-0176 | T1: 1
N2: Exhibit:
N3: Tab:
N4: Schedule:
N5: Page:
N7: Date:
B10: Appendix 2-W
B11: Bill Impacts
B14: Customer Class: | D14: Unmetered Scattered Load
D16: Consumption | F16: 375 | G16: kWh
F18: Current Board-Approved | J18: Proposed | N18: Impact
D19: Charge Unit | F19: Rate | G19: Volume | H19: Charge | J19: Rate | K19: Volume | L19: Charge | N19: $ Change | O19: % Change
F20: ($) | H20: ($) | J20: ($) | L20: ($)
B21: Monthly Service Charge | D21: per kWh | F21: 11.3 | G21: 1 | H21: =G21*F21 -> 11.3 | J21: 6.19 | K21: 1 | L21: =K21*J21 -> 6.19 | N21: =L21-H21 -> -5.11 | O21: =IF((H21)=0,"",(N21/H21)) -> -0.4522123894
B22: Smart Meter Rate Adder | D22: Monthly | G22: 1 | H22: =G22*F22 -> 0 | K22: 1 | L22: =K22*J22 -> 0 | N22: =L22-H22 -> 0 | O22: =IF((H22)=0,"",(N22/H22)) -> 
B23: SMDR | D23: Monthly | G23: 1 | H23: 0 | K23: 1 | L23: =K23*J23 -> 0 | N23: =L23-H23 -> 0 | O23: =IF((H23)=0,"",(N23/H23)) -> 
B24: Stranded Meter Rate Rider | D24: Monthly | G24: 1 | H24: 0 | K24: 1 | L24: 0 | N24: 0
G25: 1 | H25: 0 | K25: 1 | L25: 0 | N25: 0
G26: 1 | H26: 0 | K26: 1 | L26: 0 | N26: 0
B27: Distribution Volumetric Rate | D27: per kWh | F27: 0.0422 | G27: =$F$16 -> 375 | H27: 15.825 | J27: 0.0231 | K27: =$F$16 -> 375 | L27: 8.6625 | N27: -7.1625 | O27: -0.4526066351
B28: Smart Meter Disposition Rider | G28: =$F$16 -> 375 | H28: 0 | K28: =$F$16 -> 375 | L28: 0 | N28: 0
B29: LRAM & SSM Rate Rider | D29: per kWh | G29: =$F$16 -> 375 | H29: 0 | K29: 375 | L29: 0 | N29: 0
B30: Rate Rider for Tax Adjustments | D30: per kWh | F30: -0.0006 | G30: =$F$16 -> 375 | H30: -0.225 | K30: 375 | L30: 0 | N30: 0.225 | O30: -1
D31: per kWh | G31: 375 | H31: 0 | K31: 375 | L31: 0 | N31: 0
G32: 375 | H32: 0 | K32: 375 | L32: 0 | N32: 0
G33: 375 | H33: 0 | K33: 375 | L33: 0 | N33: 0
G34: 375 | H34: 0 | K34: 375 | L34: 0 | N34: 0
G35: 375 | H35: 0 | K35: 375 | L35: 0 | N35: 0
G36: 375 | H36: 0 | K36: 375 | L36: 0 | N36: 0
B37: Sub-Total A | H37: =SUM(H21:H36) -> 26.9 | L37: =SUM(L21:L36) -> 14.8525 | N37: -12.0475 | O37: -0.4478624535
B38: Deferral/Variance Account Disposition Rate Rider | D38: per kWh | F38: -0.0012 | G38: =$F$16 -> 375 | H38: =G38*F38 -> -0.45 | J38: 0.0029 | K38: =$F$16 -> 375 | L38: =K38*J38 -> 1.0875 | N38: =L38-H38 -> 1.5375 | O38: =IF((H38)=0,"",(N38/H38)) -> -3.416666667
G39: =$F$16 -> 375 | H39: =G39*F39 -> 0 | K39: =$F$16 -> 375 | L39: =K39*J39 -> 0 | N39: =L39-H39 -> 0 | O39: =IF((H39)=0,"",(N39/H39)) -> 
G40: 375 | H40: 0 | K40: 375 | L40: 0 | N40: 0
G41: 375 | H41: 0 | K41: 375 | L41: 0 | N41: 0
B42: Low Voltage Service Charge | F42: 0.0011 | G42: 375 | H42: =G42*F42 -> 0.4125 | J42: 0.0015 | K42: 375 | L42: =K42*J42 -> 0.5625 | N42: =L42-H42 -> 0.15 | O42: =IF((H42)=0,"",(N42/H42)) -> 0.3636363636
B43: Smart Meter Entity Charge | K43: 375 | L43: =K43*J43 -> 0 | N43: =L43-H43 -> 0
B44: Sub-Total B - Distribution (includes Sub-Total A) | H44: =SUM(H38:H42)+H37 -> 26.8625 | L44: =SUM(L38:L42)+L37 -> 16.5025 | N44: =L44-H44 -> -10.36 | O44: =IF((H44)=0,"",(N44/H44)) -> -0.3856677524
B45: RTSR - Network | D45: per kWh | F45: 0.0048 | G45: =F16*(1+F71) -> 404.55 | H45: =G45*F45 -> 1.94184 | J45: 0.0054 | K45: =F16*(1+J71) -> 401.25 | L45: =K45*J45 -> 2.16675 | N45: 0.22491 | O45: 0.1158231368
B46: RTSR - Line and Transformation Connection | D46: per kWh | F46: 0.0017 | G46: =G45 -> 404.55 | H46: =G46*F46 -> 0.687735 | J46: 0.0019 | K46: =K45 -> 401.25 | L46: =K46*J46 -> 0.762375 | N46: 0.07464 | O46: 0.1085301751
B47: Sub-Total C - Delivery (including Sub-Total B) | H47: =SUM(H44:H46) -> 29.492075 | L47: =SUM(L44:L46) -> 19.431625 | N47: -10.06045 | O47: -0.3411238443
B48: Wholesale Market Service Charge (WMSC) | D48: per kWh | F48: 0.0052 | G48: =G46 -> 404.55 | H48: =G48*F48 -> 2.10366 | J48: 0.0052 | K48: =K46 -> 401.25 | L48: =K48*J48 -> 2.0865 | N48: -0.01716 | O48: -0.008157211717
B49: Rural and Remote Rate Protection (RRRP) | D49: per kWh | F49: 0.0011 | G49: =G46 -> 404.55 | H49: 0.445005 | J49: 0.0011 | K49: =K46 -> 401.25 | L49: 0.441375 | N49: -0.00363 | O49: -0.008157211717
B50: Standard Supply Service Charge | D50: Monthly | F50: 0.25 | G50: 1 | H50: 0.25 | J50: 0.25 | K50: 1 | L50: 0.25 | N50: 0 | O50: 0
B51: Debt Retirement Charge (DRC) | D51: per kWh | F51: 0.0007 | G51: =G49 -> 404.55 | H51: 0.283185 | J51: 0.0007 | K51: =K49 -> 401.25 | L51: 0.280875 | N51: -0.00231 | O51: -0.008157211717
B52: Energy - RPP - Tier 1 | D52: per kWh | F52: 0.075 | G52: =IF($T$1=1,IF($F$16>=600,600,IF($F$16<600,$F$16*(1+$F$71),$F$16-600)),IF($T$1=2,IF($F$16>=1000,1000,IF($F$16<1000,$F$16*(1+$F$71),$F$16-1000)))) -> 404.55 | H52: =G52*F52 -> 30.34125 | J52: 0.075 | K52: =IF($T$1=1,IF($F$16>=600,600,IF($F$16<600,$F$16*(1+$J$71),$F$16-600)),IF($T$1=2,IF($F$16>=1000,1000,IF($F$16<1000,$F$16*(1+$J$71),$F$16-1000)))) -> 401.25 | L52: =K52*J52 -> 30.09375 | N52: -0.2475 | O52: -0.008157211717
B53: Energy - RPP - Tier 2 | D53: per kWh | F53: 0.088 | G53: =IF($T$1=1,IF($F$16>=600,$F$16*(1+$F$71)-600,IF($F$16<600,0,)), IF($T$1=2,IF($F$16>=1000,$F$16*(1+$F$71)-1000,IF($F$16<1000,0)))) -> 0 | H53: =G53*F53 -> 0 | J53: 0.088 | K53: =IF($T$1=1,IF($F$16>=600,$F$16*(1+$J$71)-600,IF($F$16<600,0,)), IF($T$1=2,IF($F$16>=1000,$F$16*(1+$J$71)-1000,IF($F$16<1000,0)))) -> 0 | L53: =K53*J53 -> 0 | N53: 0
B54: TOU - Off Peak | D54: per kWh | F54: 0.065 | G54: =0.64*$F$16*(1+$F$71) -> 258.912 | H54: 16.82928 | J54: 0.065 | K54: =0.64*$F$16*(1+$J$71) -> 256.8 | L54: 16.692 | N54: -0.13728 | O54: -0.008157211717
B55: TOU - Mid Peak | D55: per kWh | F55: 0.1 | G55: =0.18*$F$16*(1+$F$71) -> 72.819 | H55: 7.2819 | J55: 0.1 | K55: =0.18*$F$16*(1+$J$71) -> 72.225 | L55: 7.2225 | N55: -0.0594 | O55: -0.008157211717
B56: TOU - On Peak | D56: per kWh | F56: 0.117 | G56: =0.18*$F$16*(1+$F$71) -> 72.819 | H56: 8.519823 | J56: 0.117 | K56: =0.18*$F$16*(1+$J$71) -> 72.225 | L56: 8.450325 | N56: -0.069498 | O56: -0.008157211717
B58: Total Bill on RPP (before Taxes) | H58: =SUM(H47:H53) -> 62.915175 | L58: =SUM(L47:L53) -> 52.584125 | N58: -10.33105 | O58: -0.1642060123
B59: HST | F59: 0.13 | H59: =H58*F59 -> 8.17897275 | J59: 0.13 | L59: =L58*J59 -> 6.83593625 | N59: -1.3430365 | O59: -0.1642060123
B60: Total Bill (including HST) | H60: =H58+H59 -> 71.09414775 | L60: =L58+L59 -> 59.42006125 | N60: -11.6740865 | O60: -0.1642060123
B61: Ontario Clean Energy Benefit 1 | H61: =ROUND(-H60*10%,2) -> -7.11 | L61: =ROUND(-L60*10%,2) -> -5.94 | N61: 1.17 | O61: -0.164556962
B62: Total Bill on RPP (including OCEB) | H62: =SUM(H60:H61) -> 63.98414775 | L62: =SUM(L60:L61) -> 53.48006125 | N62: -10.5040865 | O62: -0.1641670143
B64: Total Bill on TOU (before Taxes) | H64: =SUM(H47:H51,H54:H56) -> 65.204928 | L64: =SUM(L47:L51,L54:L56) -> 54.8552 | N64: =L64-H64 -> -10.349728 | O64: =IF((H64)=0,"",(N64/H64)) -> -0.1587261625
B65: HST | F65: 0.13 | H65: =H64*F65 -> 8.47664064 | J65: 0.13 | L65: =L64*J65 -> 7.131176 | N65: -1.34546464 | O65: -0.1587261625
B66: Total Bill (including HST) | H66: =H64+H65 -> 73.68156864 | L66: =L64+L65 -> 61.986376 | N66: -11.69519264 | O66: -0.1587261625
B67: Ontario Clean Energy Benefit 1 | H67: =ROUND(-H66*10%,2) -> -7.37 | L67: =ROUND(-L66*10%,2) -> -6.2 | N67: 1.17 | O67: -0.1587516961
B68: Total Bill on TOU (including OCEB) | H68: =H66+H67 -> 66.31156864 | L68: =L66+L67 -> 55.786376 | N68: -10.52519264 | O68: -0.1587233247
B71: Loss Factor (%) | F71: 0.0788 | J71: 0.07
A73: 1 Applicable to eligible customers only. Refer to the Ontario Clean Energy Benefit Act, 2010.
A75: Note that the "Charge $" columns provide breakdowns of the amounts that each bill component contributes to the total monthly bill at the referenced
A76: consumption level at existing and proposed rates.
A78: Applicants must provide bill impacts for residential at 800 kWh and GS<50kW at 2000 kWh. In addition, their filing should cover the range that is relevant
A79: to their service territory, class by class. A general guideline of consumption levels follows:
A81: Residential (kWh) - 100, 250, 500, 800, 1000, 1500, 2000
A82: GS<50kW (kWh) - 1000, 2000, 5000, 10000, 15000
A83: GS>50kW (kW) - 60, 100, 500, 1000
A84: Large User - range appropriate for utility
A85: Lighting Classes and USL - 150 kWh and 1 kW, range appropriate for utility.

Sheet App.2-W_Bill Impacts_Sentinel
N1: File Number: | O1: ='[2]LDC Info'!$E$18 -> EB2012-0176 | T1: 1
N2: Exhibit:
N3: Tab:
N4: Schedule:
N5: Page:
N7: Date:
B10: Appendix 2-W
B11: Bill Impacts
B14: Customer Class: | D14: Sentinel Lighting
D16: Consumption | F16: 200 | G16: kWh
F17: 0.2 | G17: KW
F18: Current Board-Approved | J18: Proposed | N18: Impact
D19: Charge Unit | F19: Rate | G19: Volume | H19: Charge | J19: Rate | K19: Volume | L19: Charge | N19: $ Change | O19: % Change
F20: ($) | H20: ($) | J20: ($) | L20: ($)
B21: Monthly Service Charge | D21: Monthly | F21: 2.53 | G21: 1 | H21: =G21*F21 -> 2.53 | J21: 4.51 | K21: =+G21 -> 1 | L21: =K21*J21 -> 4.51 | N21: =L21-H21 -> 1.98 | O21: =IF((H21)=0,"",(N21/H21)) -> 0.7826086957
B22: Smart Meter Rate Adder | D22: Monthly | G22: 1 | H22: =G22*F22 -> 0 | K22: =+G22 -> 1 | L22: 0 | N22: =L22-H22 -> 0 | O22: =IF((H22)=0,"",(N22/H22)) -> 
B23: SMDR | D23: Monthly | G23: 1 | H23: 0 | K23: 1 | L23: 0 | N23: =L23-H23 -> 0 | O23: =IF((H23)=0,"",(N23/H23)) -> 
B24: Stranded Meter Rate Rider | D24: Monthly | G24: 1 | H24: 0 | K24: 1 | L24: 0 | N24: 0
G25: 1 | H25: 0 | K25: 1 | L25: 0 | N25: 0
G26: 1 | H26: 0 | K26: 1 | L26: 0 | N26: 0
B27: Distribution Volumetric Rate | D27: per kW | F27: 13.0802 | G27: =+$F$17 -> 0.2 | H27: 2.61604 | J27: 23.3275 | K27: 0.2 | L27: 4.6655 | N27: 2.04946 | O27: 0.7834207428
B28: Smart Meter Disposition Rider | G28: =+$F$17 -> 0.2 | H28: 0 | K28: 0.2 | L28: 0 | N28: 0
B29: LRAM & SSM Rate Rider | D29: per kW | G29: 0.2 | H29: 0 | K29: 0.2 | L29: 0 | N29: 0
B30: Rate Rider for Tax Adjustments | D30: per kW | F30: -0.2288 | G30: 0.2 | H30: -0.04576 | K30: 0.2 | L30: 0 | N30: 0.04576 | O30: -1
D31: per kWh | G31: 0.2 | H31: 0 | K31: 0.2 | L31: 0 | N31: 0
G32: 0.2 | H32: 0 | K32: 0.2 | L32: 0 | N32: 0
G33: 0.2 | H33: 0 | K33: 0.2 | L33: 0 | N33: 0
G34: 0.2 | H34: 0 | K34: 0.2 | L34: 0 | N34: 0
G35: 0.2 | H35: 0 | K35: 0.2 | L35: 0 | N35: 0
G36: 0.2 | H36: 0 | K36: 0.2 | L36: 0 | N36: 0
B37: Sub-Total A | H37: =SUM(H21:H36) -> 5.10028 | L37: =SUM(L21:L36) -> 9.1755 | N37: 4.07522 | O37: 0.7990188774
B38: Deferral/Variance Account Disposition Rate Rider | D38: per kW | F38: -1.1627 | G38: =+$F$17 -> 0.2 | H38: =G38*F38 -> -0.23254 | J38: 3.2347 | K38: 0.2 | L38: =K38*J38 -> 0.64694 | N38: =L38-H38 -> 0.87948 | O38: =IF((H38)=0,"",(N38/H38)) -> -3.782059001
B39: Global Adjustment Rate Rider | D39: per kW | G39: =+$F$17 -> 0.2 | H39: =G39*F39 -> 0 | K39: 0.2 | L39: =K39*J39 -> 0 | N39: =L39-H39 -> 0 | O39: =IF((H39)=0,"",(N39/H39)) -> 
G40: =+$F$17 -> 0.2 | H40: 0 | K40: 0.2 | L40: 0 | N40: 0
G41: =+$F$17 -> 0.2 | H41: 0 | K41: 0.2 | L41: 0 | N41: 0
B42: Low Voltage Service Charge | D42: per kW | F42: 0.3153 | G42: =+$F$17 -> 0.2 | H42: =G42*F42 -> 0.06306 | J42: 0.4397 | K42: 0.2 | L42: =K42*J42 -> 0.08794 | N42: =L42-H42 -> 0.02488 | O42: =IF((H42)=0,"",(N42/H42)) -> 0.3945448779
B43: Smart Meter Entity Charge | K43: 0 | L43: =K43*J43 -> 0 | N43: =L43-H43 -> 0
B44: Sub-Total B - Distribution (includes Sub-Total A) | H44: =SUM(H38:H42)+H37 -> 4.9308 | L44: =SUM(L38:L42)+L37 -> 9.91038 | N44: =L44-H44 -> 4.97958 | O44: =IF((H44)=0,"",(N44/H44)) -> 1.009892918
B45: RTSR - Network | D45: per kW | F45: 1.5096 | G45: =+$F$17 -> 0.2 | H45: =G45*F45 -> 0.30192 | J45: 1.7069 | K45: 0.2 | L45: =K45*J45 -> 0.34138 | N45: 0.03946 | O45: 0.1306968733
B46: RTSR - Line and Transformation Connection | D46: per kW | F46: 0.5476 | G46: =G45 -> 0.2 | H46: =G46*F46 -> 0.10952 | J46: 0.6137 | K46: 0.2 | L46: =K46*J46 -> 0.12274 | N46: 0.01322 | O46: 0.1207085464
B47: Sub-Total C - Delivery (including Sub-Total B) | H47: =SUM(H44:H46) -> 5.34224 | L47: =SUM(L44:L46) -> 10.3745 | N47: 5.03226 | O47: 0.9419756507
B48: Wholesale Market Service Charge (WMSC) | D48: per kWh | F48: 0.0052 | G48: =+$F$16 -> 200 | H48: =G48*F48 -> 1.04 | J48: 0.0052 | K48: 200 | L48: =K48*J48 -> 1.04 | N48: 0 | O48: 0
B49: Rural and Remote Rate Protection (RRRP) | D49: per kWh | F49: 0.0011 | G49: =+$F$16 -> 200 | H49: 0.22 | J49: 0.0011 | K49: 200 | L49: 0.22 | N49: 0 | O49: 0
B50: Standard Supply Service Charge | D50: Monthly | F50: 0.25 | G50: 1 | H50: 0.25 | J50: 0.25 | K50: 1 | L50: 0.25 | N50: 0 | O50: 0
B51: Debt Retirement Charge (DRC) | D51: per kWh | F51: 0.0007 | G51: =G49 -> 200 | H51: 0.14 | J51: 0.0007 | K51: 200 | L51: 0.14 | N51: 0 | O51: 0
B52: Energy - RPP - Tier 1 | D52: per kWh | F52: 0.075 | G52: =IF($T$1=1,IF($F$16>=600,600,IF($F$16<600,$F$16*(1+$F$71),$F$16-600)),IF($T$1=2,IF($F$16>=1000,1000,IF($F$16<1000,$F$16*(1+$F$71),$F$16-1000)))) -> 215.76 | H52: =G52*F52 -> 16.182 | J52: 0.075 | K52: 215.76 | L52: =K52*J52 -> 16.182 | N52: 0 | O52: 0
B53: Energy - RPP - Tier 2 | D53: per kWh | F53: 0.088 | G53: =IF($T$1=1,IF($F$16>=600,$F$16*(1+$F$71)-600,IF($F$16<600,0,)), IF($T$1=2,IF($F$16>=1000,$F$16*(1+$F$71)-1000,IF($F$16<1000,0)))) -> 0 | H53: =G53*F53 -> 0 | J53: 0.088 | K53: 0 | L53: =K53*J53 -> 0 | N53: 0
B54: TOU - Off Peak | D54: per kWh | F54: 0.065 | G54: =0.64*$F$16*(1+$F$71) -> 138.0864 | H54: 8.975616 | J54: 0.065 | K54: 138.0864 | L54: 8.975616 | N54: 0 | O54: 0
B55: TOU - Mid Peak | D55: per kWh | F55: 0.1 | G55: =0.18*$F$16*(1+$F$71) -> 38.8368 | H55: 3.88368 | J55: 0.1 | K55: 38.8368 | L55: 3.88368 | N55: 0 | O55: 0
B56: TOU - On Peak | D56: per kWh | F56: 0.117 | G56: =0.18*$F$16*(1+$F$71) -> 38.8368 | H56: 4.5439056 | J56: 0.117 | K56: 38.8368 | L56: 4.5439056 | N56: 0 | O56: 0
B58: Total Bill on RPP (before Taxes) | H58: =SUM(H47:H53) -> 23.17424 | L58: =SUM(L47:L53) -> 28.2065 | N58: 5.03226 | O58: 0.2171488687
B59: HST | F59: 0.13 | H59: =H58*F59 -> 3.0126512 | J59: 0.13 | L59: =L58*J59 -> 3.666845 | N59: 0.6541938 | O59: 0.2171488687
B60: Total Bill (including HST) | H60: =H58+H59 -> 26.1868912 | L60: =L58+L59 -> 31.873345 | N60: 5.6864538 | O60: 0.2171488687
B61: Ontario Clean Energy Benefit 1 | H61: =ROUND(-H60*10%,2) -> -2.62 | L61: =ROUND(-L60*10%,2) -> -3.19 | N61: -0.57 | O61: 0.2175572519
B62: Total Bill on RPP (including OCEB) | H62: =SUM(H60:H61) -> 23.5668912 | L62: =SUM(L60:L61) -> 28.683345 | N62: 5.1164538 | O62: 0.2171034676
B64: Total Bill on TOU (before Taxes) | H64: =SUM(H47:H51,H54:H56) -> 24.3954416 | L64: =SUM(L47:L51,L54:L56) -> 29.4277016 | N64: =L64-H64 -> 5.03226 | O64: =IF((H64)=0,"",(N64/H64)) -> 0.2062787009
B65: HST | F65: 0.13 | H65: =H64*F65 -> 3.171407408 | J65: 0.13 | L65: =L64*J65 -> 3.825601208 | N65: 0.6541938 | O65: 0.2062787009
B66: Total Bill (including HST) | H66: =H64+H65 -> 27.56684901 | L66: =L64+L65 -> 33.25330281 | N66: 5.6864538 | O66: 0.2062787009
B67: Ontario Clean Energy Benefit 1 | H67: =ROUND(-H66*10%,2) -> -2.76 | L67: =ROUND(-L66*10%,2) -> -3.33 | N67: -0.57 | O67: 0.2065217391
B68: Total Bill on TOU (including OCEB) | H68: =H66+H67 -> 24.80684901 | L68: =L66+L67 -> 29.92330281 | N68: 5.1164538 | O68: 0.2062516605
B71: Loss Factor (%) | F71: 0.0788 | J71: 0.07
A73: 1 Applicable to eligible customers only. Refer to the Ontario Clean Energy Benefit Act, 2010.
A75: Note that the "Charge $" columns provide breakdowns of the amounts that each bill component contributes to the total monthly bill at the referenced
A76: consumption level at existing and proposed rates.
A78: Applicants must provide bill impacts for residential at 800 kWh and GS<50kW at 2000 kWh. In addition, their filing should cover the range that is relevant
A79: to their service territory, class by class. A general guideline of consumption levels follows:
A81: Residential (kWh) - 100, 250, 500, 800, 1000, 1500, 2000
A82: GS<50kW (kWh) - 1000, 2000, 5000, 10000, 15000
A83: GS>50kW (kW) - 60, 100, 500, 1000
A84: Large User - range appropriate for utility
A85: Lighting Classes and USL - 150 kWh and 1 kW, range appropriate for utility.

Sheet App.2-W_Bill Impacts_Streetligh
N1: File Number: | O1: ='[2]LDC Info'!$E$18 -> EB2012-0176 | T1: 1
N2: Exhibit:
N3: Tab:
N4: Schedule:
N5: Page:
N7: Date:
B10: Appendix 2-W
B11: Bill Impacts
B14: Customer Class: | D14: Street Lighting
D16: Consumption | F16: 500 | G16: kWh
F17: 3 | G17: KW
F18: Current Board-Approved | J18: Proposed | N18: Impact
D19: Charge Unit | F19: Rate | G19: Volume | H19: Charge | J19: Rate | K19: Volume | L19: Charge | N19: $ Change | O19: % Change
F20: ($) | H20: ($) | J20: ($) | L20: ($)
B21: Monthly Service Charge | D21: Monthly | F21: 3.88 | G21: 1 | H21: =G21*F21 -> 3.88 | J21: 4.25 | K21: =+G21 -> 1 | L21: =K21*J21 -> 4.25 | N21: =L21-H21 -> 0.37 | O21: =IF((H21)=0,"",(N21/H21)) -> 0.09536082474
B22: Smart Meter Rate Adder | D22: Monthly | G22: 1 | H22: =G22*F22 -> 0 | K22: =+G22 -> 1 | L22: 0 | N22: =L22-H22 -> 0 | O22: =IF((H22)=0,"",(N22/H22)) -> 
B23: SMDR | D23: Monthly | G23: 1 | H23: 0 | K23: 1 | L23: 0 | N23: =L23-H23 -> 0 | O23: =IF((H23)=0,"",(N23/H23)) -> 
B24: Stranded Meter Rate Rider | D24: Monthly | G24: 1 | H24: 0 | K24: 1 | L24: 0 | N24: 0
G25: 1 | H25: 0 | K25: 1 | L25: 0 | N25: 0
G26: 1 | H26: 0 | K26: 1 | L26: 0 | N26: 0
B27: Distribution Volumetric Rate | D27: per kW | F27: 3.2599 | G27: =+$F$17 -> 3 | H27: 9.7797 | J27: 3.5559 | K27: 3 | L27: 10.6677 | N27: 0.888 | O27: 0.0908003313
B28: Smart Meter Disposition Rider | G28: =+$F$17 -> 3 | H28: 0 | K28: 3 | L28: 0 | N28: 0
B29: LRAM & SSM Rate Rider | D29: per kW | G29: 3 | H29: 0 | K29: 3 | L29: 0 | N29: 0
B30: Rate Rider for Tax Adjustments | D30: per kW | F30: -0.278 | G30: 3 | H30: -0.834 | K30: 3 | L30: 0 | N30: 0.834 | O30: -1
D31: per kWh | G31: 3 | H31: 0 | K31: 3 | L31: 0 | N31: 0
G32: 3 | H32: 0 | K32: 3 | L32: 0 | N32: 0
G33: 3 | H33: 0 | K33: 3 | L33: 0 | N33: 0
G34: 3 | H34: 0 | K34: 3 | L34: 0 | N34: 0
G35: 3 | H35: 0 | K35: 3 | L35: 0 | N35: 0
G36: 3 | H36: 0 | K36: 3 | L36: 0 | N36: 0
B37: Sub-Total A | H37: =SUM(H21:H36) -> 12.8257 | L37: =SUM(L21:L36) -> 14.9177 | N37: 2.092 | O37: 0.1631100057
B38: Deferral/Variance Account Disposition Rate Rider | D38: per kW | F38: 0.08471 | G38: =+$F$17 -> 3 | H38: =G38*F38 -> 0.25413 | J38: 1.5746 | K38: 3 | L38: =K38*J38 -> 4.7238 | N38: =L38-H38 -> 4.46967 | O38: =IF((H38)=0,"",(N38/H38)) -> 17.58812419
B39: Global Adjustment Rate Rider | D39: per kW | G39: =+$F$17 -> 3 | H39: =G39*F39 -> 0 | K39: 3 | L39: =K39*J39 -> 0 | N39: =L39-H39 -> 0 | O39: =IF((H39)=0,"",(N39/H39)) -> 
G40: =+$F$17 -> 3 | H40: 0 | K40: 3 | L40: 0 | N40: 0
G41: =+$F$17 -> 3 | H41: 0 | K41: 3 | L41: 0 | N41: 0
B42: Low Voltage Service Charge | D42: per kW | F42: 0.3079 | G42: =+$F$17 -> 3 | H42: =G42*F42 -> 0.9237 | J42: 0.4502 | K42: 3 | L42: =K42*J42 -> 1.3506 | N42: =L42-H42 -> 0.4269 | O42: =IF((H42)=0,"",(N42/H42)) -> 0.4621630399
B43: Smart Meter Entity Charge | K43: 0 | L43: =K43*J43 -> 0 | N43: =L43-H43 -> 0
B44: Sub-Total B - Distribution (includes Sub-Total A) | H44: =SUM(H38:H42)+H37 -> 14.00353 | L44: =SUM(L38:L42)+L37 -> 20.9921 | N44: =L44-H44 -> 6.98857 | O44: =IF((H44)=0,"",(N44/H44)) -> 0.4990577376
B45: RTSR - Network | D45: per kW | F45: 1.4976 | G45: =+$F$17 -> 3 | H45: =G45*F45 -> 4.4928 | J45: 1.6934 | K45: 3 | L45: =K45*J45 -> 5.0802 | N45: 0.5874 | O45: 0.1307425214
B46: RTSR - Line and Transformation Connection | D46: per kW | F46: 0.5348 | G46: =G45 -> 3 | H46: =G46*F46 -> 1.6044 | J46: 0.5994 | K46: 3 | L46: =K46*J46 -> 1.7982 | N46: 0.1938 | O46: 0.1207928197
B47: Sub-Total C - Delivery (including Sub-Total B) | H47: =SUM(H44:H46) -> 20.10073 | L47: =SUM(L44:L46) -> 27.8705 | N47: 7.76977 | O47: 0.3865416828
B48: Wholesale Market Service Charge (WMSC) | D48: per kWh | F48: 0.0052 | G48: =+$F$16 -> 500 | H48: =G48*F48 -> 2.6 | J48: 0.0052 | K48: 500 | L48: =K48*J48 -> 2.6 | N48: 0 | O48: 0
B49: Rural and Remote Rate Protection (RRRP) | D49: per kWh | F49: 0.0011 | G49: =+$F$16 -> 500 | H49: 0.55 | J49: 0.0011 | K49: 500 | L49: 0.55 | N49: 0 | O49: 0
B50: Standard Supply Service Charge | D50: Monthly | F50: 0.25 | G50: 1 | H50: 0.25 | J50: 0.25 | K50: 1 | L50: 0.25 | N50: 0 | O50: 0
B51: Debt Retirement Charge (DRC) | D51: per kWh | F51: 0.0007 | G51: =G49 -> 500 | H51: 0.35 | J51: 0.0007 | K51: 500 | L51: 0.35 | N51: 0 | O51: 0
B52: Energy - RPP - Tier 1 | D52: per kWh | F52: 0.075 | G52: =IF($T$1=1,IF($F$16>=600,600,IF($F$16<600,$F$16*(1+$F$71),$F$16-600)),IF($T$1=2,IF($F$16>=1000,1000,IF($F$16<1000,$F$16*(1+$F$71),$F$16-1000)))) -> 539.4 | H52: =G52*F52 -> 40.455 | J52: 0.075 | K52: 539.4 | L52: =K52*J52 -> 40.455 | N52: 0 | O52: 0
B53: Energy - RPP - Tier 2 | D53: per kWh | F53: 0.088 | G53: =IF($T$1=1,IF($F$16>=600,$F$16*(1+$F$71)-600,IF($F$16<600,0,)), IF($T$1=2,IF($F$16>=1000,$F$16*(1+$F$71)-1000,IF($F$16<1000,0)))) -> 0 | H53: =G53*F53 -> 0 | J53: 0.088 | K53: 0 | L53: =K53*J53 -> 0 | N53: 0
B54: TOU - Off Peak | D54: per kWh | F54: 0.065 | G54: =0.64*$F$16*(1+$F$71) -> 345.216 | H54: 22.43904 | J54: 0.065 | K54: 345.216 | L54: 22.43904 | N54: 0 | O54: 0
B55: TOU - Mid Peak | D55: per kWh | F55: 0.1 | G55: =0.18*$F$16*(1+$F$71) -> 97.092 | H55: 9.7092 | J55: 0.1 | K55: 97.092 | L55: 9.7092 | N55: 0 | O55: 0
B56: TOU - On Peak | D56: per kWh | F56: 0.117 | G56: =0.18*$F$16*(1+$F$71) -> 97.092 | H56: 11.359764 | J56: 0.117 | K56: 97.092 | L56: 11.359764 | N56: 0 | O56: 0
B58: Total Bill on RPP (before Taxes) | H58: =SUM(H47:H53) -> 64.30573 | L58: =SUM(L47:L53) -> 72.0755 | N58: 7.76977 | O58: 0.1208254692
B59: HST | F59: 0.13 | H59: =H58*F59 -> 8.3597449 | J59: 0.13 | L59: =L58*J59 -> 9.369815 | N59: 1.0100701 | O59: 0.1208254692
B60: Total Bill (including HST) | H60: =H58+H59 -> 72.6654749 | L60: =L58+L59 -> 81.445315 | N60: 8.7798401 | O60: 0.1208254692
B61: Ontario Clean Energy Benefit 1 | H61: =ROUND(-H60*10%,2) -> -7.27 | L61: =ROUND(-L60*10%,2) -> -8.14 | N61: -0.87 | O61: 0.1196698762
B62: Total Bill on RPP (including OCEB) | H62: =SUM(H60:H61) -> 65.3954749 | L62: =SUM(L60:L61) -> 73.305315 | N62: 7.9098401 | O62: 0.1209539362
B64: Total Bill on TOU (before Taxes) | H64: =SUM(H47:H51,H54:H56) -> 67.358734 | L64: =SUM(L47:L51,L54:L56) -> 75.128504 | N64: =L64-H64 -> 7.76977 | O64: =IF((H64)=0,"",(N64/H64)) -> 0.1153491097
B65: HST | F65: 0.13 | H65: =H64*F65 -> 8.75663542 | J65: 0.13 | L65: =L64*J65 -> 9.76670552 | N65: 1.0100701 | O65: 0.1153491097
B66: Total Bill (including HST) | H66: =H64+H65 -> 76.11536942 | L66: =L64+L65 -> 84.89520952 | N66: 8.7798401 | O66: 0.1153491097
B67: Ontario Clean Energy Benefit 1 | H67: =ROUND(-H66*10%,2) -> -7.61 | L67: =ROUND(-L66*10%,2) -> -8.49 | N67: -0.88 | O67: 0.1156373193
B68: Total Bill on TOU (including OCEB) | H68: =H66+H67 -> 68.50536942 | L68: =L66+L67 -> 76.40520952 | N68: 7.8998401 | O68: 0.1153170936
B71: Loss Factor (%) | F71: 0.0788 | J71: 0.07
A73: 1 Applicable to eligible customers only. Refer to the Ontario Clean Energy Benefit Act, 2010.
A75: Note that the "Charge $" columns provide breakdowns of the amounts that each bill component contributes to the total monthly bill at the referenced
A76: consumption level at existing and proposed rates.
A78: Applicants must provide bill impacts for residential at 800 kWh and GS<50kW at 2000 kWh. In addition, their filing should cover the range that is relevant
A79: to their service territory, class by class. A general guideline of consumption levels follows:
A81: Residential (kWh) - 100, 250, 500, 800, 1000, 1500, 2000
A82: GS<50kW (kWh) - 1000, 2000, 5000, 10000, 15000
A83: GS>50kW (kW) - 60, 100, 500, 1000
A84: Large User - range appropriate for utility
A85: Lighting Classes and USL - 150 kWh and 1 kW, range appropriate for utility.
